{"text_format":"2","workbook":"xlsx","n_sheets":1,"sheets":["Depot Details "],"not_rendered":{"charts":0,"images":0,"macros":0,"external_links":1,"defined_names":0,"comments":0,"pivot_tables":3},"unopened":[],"bounds":{"document_bytes":16777216,"sheet_cells":100000,"run_cost":"one","rows_first":2000,"rows_last":500,"rows_between":2000,"halvings":0,"cell_chars":16384,"cell_head_chars":4096},"cells_cut":0,"cells_raw":0,"read":"whole","date_system":"1900"}

{"sheet":"Depot Details ","index":0,"n_rows":599,"n_cols":15,"rows_kept":599,"cut":false,"hidden":false,"merged":[]}
["Route Start Point","Route End Point","Routes","No. of Buses","End Point",null,null,"Registration Number","No. of trips",{"$nulls":4},"Bus Make & Model","Trips"]
["Bally","Hatisala","Bally_Hastisala_1007",1,{"$f":"VLOOKUP(C2,'[1]Raw Kolkata Stop level Route'!G:I,3,0)","v":"Infosysu00a0Businessu00a0Park (New Town)"},null,null,"WB19P9275",1,{"$nulls":4},"Ashok leyland LS 1310",16]
[null,null,"Hastisala_Bally_1007",1,{"$f":"VLOOKUP(C3,'[1]Raw Kolkata Stop level Route'!G:I,3,0)","v":"Bally Bus Stop"},null,null,"WB19Q9209",1,{"$nulls":4},"Bharat Benz BS IV 917",4]
[null,null,"Sector5_Bally_1003",1,{"$f":"VLOOKUP(C4,'[1]Raw Kolkata Stop level Route'!G:I,3,0)","v":"Bally Bus Stop"},null,null,"WB19Q6774",1,{"$nulls":4},"EICHER PRO 3009 K CWC BS V1",646]
[null,"Hatisala Total",null,3,null,null,null,"WB25P3254",1,{"$nulls":4},"Force Mono Bus",54]
[null,"NewTown","Bally_NewTown_5017",4,{"$f":"VLOOKUP(C6,'[1]Raw Kolkata Stop level Route'!G:I,3,0)","v":"opposite to Narayana School"},null,null,"WB19Q4162",1,{"$nulls":4},"SML EXECUTIVE LX COACH",52]
[null,null,"Bally_NewTown_5019",2,{"$f":"VLOOKUP(C7,'[1]Raw Kolkata Stop level Route'!G:I,3,0)","v":"Tata Consultancy Service Business services Company"},null,null,"WB19P8311",1,{"$nulls":4},"Tata LPO 1618",305]
[null,null,"Bally_Sector5_1003",2,{"$f":"VLOOKUP(C8,'[1]Raw Kolkata Stop level Route'!G:I,3,0)","v":"Wipro"},null,null,"WB25P2106",1,{"$nulls":4},"Grand Total",1077]
[null,null,"NewTown_Bally_5018",5,{"$f":"VLOOKUP(C9,'[1]Raw Kolkata Stop level Route'!G:I,3,0)","v":"DTDC Courier service"},null,null,"WB19Q7008",1]
[null,null,"NewTown_Bally_5020",1,{"$f":"VLOOKUP(C10,'[1]Raw Kolkata Stop level Route'!G:I,3,0)","v":"bamon danga bus stop"},null,null,"WB25P6296",1]
[null,null,"NewTown_Barrackpur_5008",1,{"$f":"VLOOKUP(C11,'[1]Raw Kolkata Stop level Route'!G:I,3,0)","v":"Chiriya More (Hindu School Ground)"},null,null,"WB23H2865",1]
[null,null,"NewTown_Barrackpur_5012",1,{"$f":"VLOOKUP(C12,'[1]Raw Kolkata Stop level Route'!G:I,3,0)","v":"Milan Chakra Gronthagar Library"},null,null,"WB07K2998",1]
[null,null,"Newtown_Bijaygarh_1003",1,{"$f":"VLOOKUP(C13,'[1]Raw Kolkata Stop level Route'!G:I,3,0)","v":"BijayGarh-Pallisree"},null,null,"WB19Q9748",2]
[null,null,"NewTown_Sonarpur_5058",1,{"$f":"VLOOKUP(C14,'[1]Raw Kolkata Stop level Route'!G:I,3,0)","v":"Opposite to Bansdroni busstop"},null,null,"WB19Q2313",2]
[null,null,"Sector5_Bally_1003",4,{"$f":"VLOOKUP(C15,'[1]Raw Kolkata Stop level Route'!G:I,3,0)","v":"Bally Bus Stop"},null,null,"WB19Q5400",2]
[null,null,"Sonarpur_NewTown_5053",1,{"$f":"VLOOKUP(C16,'[1]Raw Kolkata Stop level Route'!G:I,3,0)","v":"Mani Casa Government Office"},null,null,"WB19R3863",2]
[null,null,"Sonarpur_NewTown_5057",1,{"$f":"VLOOKUP(C17,'[1]Raw Kolkata Stop level Route'!G:I,3,0)","v":"Mani Casa Government Office"},null,null,"WB19Q3534",2]
[null,null,"Tollygunge(PrinceAnwar)_NewTown_1004",1,{"$f":"VLOOKUP(C18,'[1]Raw Kolkata Stop level Route'!G:I,3,0)","v":"Ecospace Opp. Entry Gate"},null,null,"WB25M7200",2]
[null,"NewTown Total",null,25,null,null,null,"WB19Q3496",2]
[null,"Sector V","Bally_Sector5_1003",6,{"$f":"VLOOKUP(C20,'[1]Raw Kolkata Stop level Route'!G:I,3,0)","v":"Wipro"},null,null,"WB15G6444",2]
[null,null,"Barrackpore_Sector5_1001",1,{"$f":"VLOOKUP(C21,'[1]Raw Kolkata Stop level Route'!G:I,3,0)","v":"Wipro"},null,null,"WB19Q4958",2]
[null,null,"Barrackpur_NewTown_5009",1,{"$f":"VLOOKUP(C22,'[1]Raw Kolkata Stop level Route'!G:I,3,0)","v":"Opposite to NBCC Shopping Centre Shopping center"},null,null,"WB19Q3526",2]
[null,null,"Hastisala_Bally_1007",1,{"$f":"VLOOKUP(C23,'[1]Raw Kolkata Stop level Route'!G:I,3,0)","v":"Bally Bus Stop"},null,null,"WB19Q9636",2]
[null,null,"NewTown_Bally_5018",1,{"$f":"VLOOKUP(C24,'[1]Raw Kolkata Stop level Route'!G:I,3,0)","v":"DTDC Courier service"},null,null,"WB07W0368",2]
[null,null,"NewTown_Barrackpur_5008",1,{"$f":"VLOOKUP(C25,'[1]Raw Kolkata Stop level Route'!G:I,3,0)","v":"Chiriya More (Hindu School Ground)"},null,null,"WB19R0039",2]
[null,null,"Sector5_Bally_1003",5,{"$f":"VLOOKUP(C26,'[1]Raw Kolkata Stop level Route'!G:I,3,0)","v":"Bally Bus Stop"},null,null,"WB25N9777",2]
[null,null,"Sector5_Barasat_1001",1,{"$f":"VLOOKUP(C27,'[1]Raw Kolkata Stop level Route'!G:I,3,0)","v":"Opp. BigBazar-Chapadali More"},null,null,"WB19Q5403",2]
[null,null,"Sector5_Barrackpore_1001",1,{"$f":"VLOOKUP(C28,'[1]Raw Kolkata Stop level Route'!G:I,3,0)","v":"Ghosh Para Road"},null,null,"WB25P4411",2]
[null,null,"Sector5_Dunlop_1001",1,{"$f":"VLOOKUP(C29,'[1]Raw Kolkata Stop level Route'!G:I,3,0)","v":"Dunlop United Bank"},null,null,"WB19Q6625",2]
[null,null,"Sector5_Serampore_1002",1,{"$f":"VLOOKUP(C30,'[1]Raw Kolkata Stop level Route'!G:I,3,0)","v":"Serampore Bus Stop"},null,null,"WB25N8731",2]
[null,"Sector V Total",null,20,null,null,null,"WB19Q6177",2]
["Bally Total",null,null,48,null,null,null,"WB25P5876",2]
["Barasat","Hatisala","Barasat_Hatisala_1003",1,{"$f":"VLOOKUP(C33,'[1]Raw Kolkata Stop level Route'!G:I,3,0)","v":"Infosysu00a0Businessu00a0Park (New Town)"},null,null,"WB19Q5945",2]
[null,null,"Barasat_Hatisala_5021",3,{"$f":"VLOOKUP(C34,'[1]Raw Kolkata Stop level Route'!G:I,3,0)","v":"opposite to Infosys Limited"},null,null,"WB25P2355",2]
[null,null,"Hatisala_Barasat_5022",4,{"$f":"VLOOKUP(C35,'[1]Raw Kolkata Stop level Route'!G:I,3,0)","v":"Renault Car dealer, Automotive dealer"},null,null,"WB19Q4170",2]
[null,null,"Hatisala_Barrackpore_1002",1,{"$f":"VLOOKUP(C36,'[1]Raw Kolkata Stop level Route'!G:I,3,0)","v":"Ghosh Para Road"},null,null,"WB19Q4308",2]
[null,null,"Sector5_Barasat_1001",2,{"$f":"VLOOKUP(C37,'[1]Raw Kolkata Stop level Route'!G:I,3,0)","v":"Opp. BigBazar-Chapadali More"},null,null,"WB19Q3717",2]
[null,null,"SectorV_Barasat_5024",1,{"$f":"VLOOKUP(C38,'[1]Raw Kolkata Stop level Route'!G:I,3,0)","v":"Opposite to Netaji Nagar 1 No Railway Gate Bus stop"},null,null,"WB25M8655",2]
[null,"Hatisala Total",null,12,null,null,null,"WB19Q6769",2]
[null,"Sector V","Bally_Sector5_1003",1,{"$f":"VLOOKUP(C40,'[1]Raw Kolkata Stop level Route'!G:I,3,0)","v":"Wipro"},null,null,"WB25M8736",2]
[null,null,"Barasat_Sector5_1001",13,{"$f":"VLOOKUP(C41,'[1]Raw Kolkata Stop level Route'!G:I,3,0)","v":"Wipro"},null,null,"WB19Q6609",2]
[null,null,"Barasat_SectorV_5023",7,{"$f":"VLOOKUP(C42,'[1]Raw Kolkata Stop level Route'!G:I,3,0)","v":"College More Opp. Hyundai Showroom"},null,null,"WB19Q5001",2]
[null,null,"Barrackpore_Sector5_1001",1,{"$f":"VLOOKUP(C43,'[1]Raw Kolkata Stop level Route'!G:I,3,0)","v":"Wipro"},null,null,"WB07W0805",2]
[null,null,"Sector5_Barasat_1001",6,{"$f":"VLOOKUP(C44,'[1]Raw Kolkata Stop level Route'!G:I,3,0)","v":"Opp. BigBazar-Chapadali More"},null,null,"WB19Q1500",2]
[null,null,"SectorV_Barasat_5024",1,{"$f":"VLOOKUP(C45,'[1]Raw Kolkata Stop level Route'!G:I,3,0)","v":"Opposite to Netaji Nagar 1 No Railway Gate Bus stop"},null,null,"WB19Q4894",2]
[null,null,"Tollygunge(PrinceAnwar)_NewTown_1004",1,{"$f":"VLOOKUP(C46,'[1]Raw Kolkata Stop level Route'!G:I,3,0)","v":"Ecospace Opp. Entry Gate"},null,null,"WB25M8637",2]
[null,"Sector V Total",null,30,null,null,null,"WB19P8477",2]
["Barasat Total",null,null,42,null,null,null,"WB19Q7071",2]
["Barrackpore","Hatisala","Barrackpur_NewTown_5007",1,{"$f":"VLOOKUP(C49,'[1]Raw Kolkata Stop level Route'!G:I,3,0)","v":"Unitech Gate 2"},null,null,"WB19S5953",2]
[null,null,"Hatisala_Barrackpore_1002",2,{"$f":"VLOOKUP(C50,'[1]Raw Kolkata Stop level Route'!G:I,3,0)","v":"Ghosh Para Road"},null,null,"WB19Q6009",2]
[null,null,"Sector5_Barrackpore_1001",1,{"$f":"VLOOKUP(C51,'[1]Raw Kolkata Stop level Route'!G:I,3,0)","v":"Ghosh Para Road"},null,null,"WB19Q7572",2]
[null,"Hatisala Total",null,4,null,null,null,"WB25M8682",2]
[null,"NewTown","Barrackpore_Sector5_1001",1,{"$f":"VLOOKUP(C53,'[1]Raw Kolkata Stop level Route'!G:I,3,0)","v":"Wipro"},null,null,"WB25P2988",2]
[null,null,"Barrackpur_NewTown_5007",1,{"$f":"VLOOKUP(C54,'[1]Raw Kolkata Stop level Route'!G:I,3,0)","v":"Unitech Gate 2"},null,null,"WB25M8619",2]
[null,null,"Hatisala_Barrackpore_1002",1,{"$f":"VLOOKUP(C55,'[1]Raw Kolkata Stop level Route'!G:I,3,0)","v":"Ghosh Para Road"},null,null,"WB05B5227",2]
[null,null,"Hatisala_Sonarpur_5046",1,{"$f":"VLOOKUP(C56,'[1]Raw Kolkata Stop level Route'!G:I,3,0)","v":"Garia 5no. bus terminus"},null,null,"WB19Q4002",2]
[null,null,"NewTown_Barrackpur_5008",2,{"$f":"VLOOKUP(C57,'[1]Raw Kolkata Stop level Route'!G:I,3,0)","v":"Chiriya More (Hindu School Ground)"},null,null,"WB19Q3419",2]
[null,null,"NewTown_Bauripur_1001",1,{"$f":"VLOOKUP(C58,'[1]Raw Kolkata Stop level Route'!G:I,3,0)","v":"Opposite Rabindra Bhavan"},null,null,"WB19Q4560",2]
[null,null,"NewTown_Sonarpur_1001",1,{"$f":"VLOOKUP(C59,'[1]Raw Kolkata Stop level Route'!G:I,3,0)","v":"Sonarpur Sadharan Sammilani"},null,null,"WB19L8494",2]
[null,null,"Sector5_Barrackpore_1001",1,{"$f":"VLOOKUP(C60,'[1]Raw Kolkata Stop level Route'!G:I,3,0)","v":"Ghosh Para Road"},null,null,"WB25M9672",2]
[null,"NewTown Total",null,9,null,null,null,"WB19Q9628",2]
[null,"Sector V","Bally_Sector5_1003",1,{"$f":"VLOOKUP(C62,'[1]Raw Kolkata Stop level Route'!G:I,3,0)","v":"Wipro"},null,null,"WB25M8727",2]
[null,null,"Barasat_Sector5_1001",1,{"$f":"VLOOKUP(C63,'[1]Raw Kolkata Stop level Route'!G:I,3,0)","v":"Wipro"},null,null,"WB05B4740",2]
[null,null,"Barrackpore_Sector5_1001",11,{"$f":"VLOOKUP(C64,'[1]Raw Kolkata Stop level Route'!G:I,3,0)","v":"Wipro"},null,null,"WB25M8781",2]
[null,null,"Barrackpur_SectorV_5015",1,{"$f":"VLOOKUP(C65,'[1]Raw Kolkata Stop level Route'!G:I,3,0)","v":"College More First Gate"},null,null,"WB19Q6634",2]
[null,null,"NewTown_Barrackpur_5008",2,{"$f":"VLOOKUP(C66,'[1]Raw Kolkata Stop level Route'!G:I,3,0)","v":"Chiriya More (Hindu School Ground)"},null,null,"WB25M8754",2]
[null,null,"Sector5_Barrackpore_1001",13,{"$f":"VLOOKUP(C67,'[1]Raw Kolkata Stop level Route'!G:I,3,0)","v":"Ghosh Para Road"},null,null,"WB19M3198",2]
[null,null,"Sector5_Serampore_1002",1,{"$f":"VLOOKUP(C68,'[1]Raw Kolkata Stop level Route'!G:I,3,0)","v":"Serampore Bus Stop"},null,null,"WB07V7452",2]
[null,null,"Sonarpur_NewTown_1001",1,{"$f":"VLOOKUP(C69,'[1]Raw Kolkata Stop level Route'!G:I,3,0)","v":"Ecospace Opp. Entry Gate"},null,null,"WB19Q1358",2]
[null,"Sector V Total",null,31,null,null,null,"WB19Q4753",2]
["Barrackpore Total",null,null,43,null,null,null,"WB19Q5552",2]
["Barrackpur","NewTown","Bally_Sector5_1003",1,{"$f":"VLOOKUP(C72,'[1]Raw Kolkata Stop level Route'!G:I,3,0)","v":"Wipro"},null,null,"WB19Q1075",2]
[null,null,"Barrackpur_NewTown_5009",4,{"$f":"VLOOKUP(C73,'[1]Raw Kolkata Stop level Route'!G:I,3,0)","v":"Opposite to NBCC Shopping Centre Shopping center"},null,null,"WB19Q2177",2]
[null,null,"Barrackpur_NewTown_5011",1,{"$f":"VLOOKUP(C74,'[1]Raw Kolkata Stop level Route'!G:I,3,0)","v":"Kara's Tea Stall Café"},null,null,"WB11J2014",2]
[null,null,"NewTown_Bally_5018",1,{"$f":"VLOOKUP(C75,'[1]Raw Kolkata Stop level Route'!G:I,3,0)","v":"DTDC Courier service"},null,null,"WB19Q6949",2]
[null,null,"NewTown_Barrackpur_5004",2,{"$f":"VLOOKUP(C76,'[1]Raw Kolkata Stop level Route'!G:I,3,0)","v":"Motorola Showroom Shop"},null,null,"WB05B3703",2]
[null,null,"NewTown_Barrackpur_5008",1,{"$f":"VLOOKUP(C77,'[1]Raw Kolkata Stop level Route'!G:I,3,0)","v":"Chiriya More (Hindu School Ground)"},null,null,"WB19S0243",2]
[null,null,"NewTown_Barrackpur_5010",2,{"$f":"VLOOKUP(C78,'[1]Raw Kolkata Stop level Route'!G:I,3,0)","v":"Motorola Showroom Shop"},null,null,"WB19Q3387",2]
[null,null,"NewTown_Barrackpur_5012",3,{"$f":"VLOOKUP(C79,'[1]Raw Kolkata Stop level Route'!G:I,3,0)","v":"Milan Chakra Gronthagar Library"},null,null,"WB19Q8334",2]
[null,null,"Ranikuthi_NewTown_1001",1,{"$f":"VLOOKUP(C80,'[1]Raw Kolkata Stop level Route'!G:I,3,0)","v":"National insurance - kadam pukur more bus stop"},null,null,"WB11H9573",2]
[null,null,"Sector5_Serampore_1002",2,{"$f":"VLOOKUP(C81,'[1]Raw Kolkata Stop level Route'!G:I,3,0)","v":"Serampore Bus Stop"},null,null,"WB19Q0840",2]
[null,null,"Serampore_Sector5_1002",2,{"$f":"VLOOKUP(C82,'[1]Raw Kolkata Stop level Route'!G:I,3,0)","v":"Wipro"},null,null,"WB19Q8274",2]
[null,null,"Sonarpur_NewTown_5053",1,{"$f":"VLOOKUP(C83,'[1]Raw Kolkata Stop level Route'!G:I,3,0)","v":"Mani Casa Government Office"},null,null,"WB05B3192",2]
[null,"NewTown Total",null,21,null,null,null,"WB19Q9512",2]
[null,"Sector V","Barrackpore_Sector5_1001",1,{"$f":"VLOOKUP(C85,'[1]Raw Kolkata Stop level Route'!G:I,3,0)","v":"Wipro"},null,null,"WB07W0682",2]
[null,null,"Barrackpur_SectorV_5015",1,{"$f":"VLOOKUP(C86,'[1]Raw Kolkata Stop level Route'!G:I,3,0)","v":"College More First Gate"},null,null,"WB05B4996",2]
[null,null,"NewTown_Barrackpur_5008",1,{"$f":"VLOOKUP(C87,'[1]Raw Kolkata Stop level Route'!G:I,3,0)","v":"Chiriya More (Hindu School Ground)"},null,null,"WB19M3386",2]
[null,null,"Sector5_Bally_1003",1,{"$f":"VLOOKUP(C88,'[1]Raw Kolkata Stop level Route'!G:I,3,0)","v":"Bally Bus Stop"},null,null,"WB19L5841",2]
[null,null,"Sonarpur_SectorV_5051",2,{"$f":"VLOOKUP(C89,'[1]Raw Kolkata Stop level Route'!G:I,3,0)","v":"College More First Gate"},null,null,"WB19Q1593",2]
[null,"Sector V Total",null,6,null,null,null,"WB19Q6062",2]
["Barrackpur Total",null,null,27,null,null,null,"WB19P9496",2]
["Bauripur","New Town","Bauripur_NewTown_1001",7,{"$f":"VLOOKUP(C92,'[1]Raw Kolkata Stop level Route'!G:I,3,0)","v":"Ecospace Opp. Entry Gate"},null,null,"WB19Q4435",2]
[null,null,"NewTown_Bauripur_1001",5,{"$f":"VLOOKUP(C93,'[1]Raw Kolkata Stop level Route'!G:I,3,0)","v":"Opposite Rabindra Bhavan"},null,null,"WB19P9476",2]
[null,null,"NewTown_Sonarpur_1001",2,{"$f":"VLOOKUP(C94,'[1]Raw Kolkata Stop level Route'!G:I,3,0)","v":"Sonarpur Sadharan Sammilani"},null,null,"WB19Q9333",2]
[null,null,"Sonarpur_NewTown_5055",1,{"$f":"VLOOKUP(C95,'[1]Raw Kolkata Stop level Route'!G:I,3,0)","v":"Kara's Tea Stall Café"},null,null,"WB19P9623",2]
[null,null,{"$error":"#N/A"},1,null,null,null,"WB19R1540",2]
[null,"New Town Total",null,16,null,null,null,"WB19P9650",2]
["Bauripur Total",null,null,16,null,null,null,"WB19Q7174",2]
["Bijoygarh","New Town","Bally_Sector5_1003",1,{"$f":"VLOOKUP(C99,'[1]Raw Kolkata Stop level Route'!G:I,3,0)","v":"Wipro"},null,null,"WB23G0468",2]
[null,null,"Bijaygarh_Newtown_1003",3,{"$f":"VLOOKUP(C100,'[1]Raw Kolkata Stop level Route'!G:I,3,0)","v":"Ecospace Opp. Entry Gate"},null,null,"WB19Q5215",2]
[null,null,"NewTown_Jadavpur_1005",1,{"$f":"VLOOKUP(C101,'[1]Raw Kolkata Stop level Route'!G:I,3,0)","v":"Jadavpur Bus Stop"},null,null,"WB05B4435",2]
[null,null,"NewTown_Tollygunge (METRO) _1002",1,{"$f":"VLOOKUP(C102,'[1]Raw Kolkata Stop level Route'!G:I,3,0)","v":"Mahanayak Uttam kumar"},null,null,"WB19Q7138",2]
[null,"New Town Total",null,6,null,null,null,"WB07V9458",2]
["Bijoygarh Total",null,null,6,null,null,null,"WB19Q4948",2]
["BudgeBudge","NewTown","BudgeBudge_NewTown_5027",1,{"$f":"VLOOKUP(C105,'[1]Raw Kolkata Stop level Route'!G:I,3,0)","v":"Mani Casa Government office"},null,null,"WB19Q1969",2]
[null,null,"BudgeBudge_NewTown_5029",1,{"$f":"VLOOKUP(C106,'[1]Raw Kolkata Stop level Route'!G:I,3,0)","v":"Aliah University Bus Stop"},null,null,"WB19S5409",2]
[null,null,"BudgeBudge_NewTown_5031",1,{"$f":"VLOOKUP(C107,'[1]Raw Kolkata Stop level Route'!G:I,3,0)","v":"Tata Consultancy Service Business services Company"},null,null,"WB19M0288",2]
[null,null,"GreenField_NewTown_1003",2,{"$f":"VLOOKUP(C108,'[1]Raw Kolkata Stop level Route'!G:I,3,0)","v":"Ecospace Opp. Entry Gate"},null,null,"WB07K2001",2]
[null,null,"Joka_New-Town_1002",1,{"$f":"VLOOKUP(C109,'[1]Raw Kolkata Stop level Route'!G:I,3,0)","v":"Kadam Pukur More Bus Stop"},null,null,"WB19Q4409",2]
[null,null,"New-town_Joka_1002",1,{"$f":"VLOOKUP(C110,'[1]Raw Kolkata Stop level Route'!G:I,3,0)","v":"Joke Diamond Club"},null,null,"WB25S2428",2]
[null,null,"NewTown_BudgeBudge_1001",1,{"$f":"VLOOKUP(C111,'[1]Raw Kolkata Stop level Route'!G:I,3,0)","v":"ESI Hospital - Budge Budge"},null,null,"WB25P4612",2]
[null,null,"NewTown_Sonarpur_5058",2,{"$f":"VLOOKUP(C112,'[1]Raw Kolkata Stop level Route'!G:I,3,0)","v":"Opposite to Bansdroni busstop"},null,null,"WB19M1617",2]
[null,null,"Parnasree-NewTown-1001",1,{"$f":"VLOOKUP(C113,'[1]Raw Kolkata Stop level Route'!G:I,3,0)","v":"National insurance-kadam pukur more bus stop"},null,null,"WB19Q3370",2]
[null,"NewTown Total",null,11,null,null,null,"WB19Q3378",2]
["BudgeBudge Total",null,null,11,null,null,null,"WB11H8946",2]
["CentralKolkata","NewTown","Barrackpore_Sector5_1001",1,{"$f":"VLOOKUP(C116,'[1]Raw Kolkata Stop level Route'!G:I,3,0)","v":"Wipro"},null,null,"WB25M9870",2]
[null,null,"CentralKolkata_NewTown_5035",2,{"$f":"VLOOKUP(C117,'[1]Raw Kolkata Stop level Route'!G:I,3,0)","v":"Deep Garage Car repair and service Repair shop"},null,null,"WB11H8777",2]
[null,null,"NewTown_Bally_5018",1,{"$f":"VLOOKUP(C118,'[1]Raw Kolkata Stop level Route'!G:I,3,0)","v":"DTDC Courier service"},null,null,"WB19Q2004",2]
[null,null,"NewTown_CentralKolkata_5034",4,{"$f":"VLOOKUP(C119,'[1]Raw Kolkata Stop level Route'!G:I,3,0)","v":"custom house bus stop"},null,null,"WB19Q5904",2]
[null,null,"NewTown_Howrah_5038",1,{"$f":"VLOOKUP(C120,'[1]Raw Kolkata Stop level Route'!G:I,3,0)","v":"HDFC Bank"},null,null,"WB19Q5208",2]
[null,null,"NewTown_Santragachi_1005",1,{"$f":"VLOOKUP(C121,'[1]Raw Kolkata Stop level Route'!G:I,3,0)","v":"The Gate Way - Santragachi"},null,null,"WB11G2124",2]
[null,null,"NewTown_Thakurpukur_1001",1,{"$f":"VLOOKUP(C122,'[1]Raw Kolkata Stop level Route'!G:I,3,0)","v":"Genexx Valley"},null,null,"WB19Q6468",2]
[null,null,"Tollygunge(PrinceAnwar)_NewTown_1004",1,{"$f":"VLOOKUP(C123,'[1]Raw Kolkata Stop level Route'!G:I,3,0)","v":"Ecospace Opp. Entry Gate"},null,null,"WB11J7115",2]
[null,"NewTown Total",null,12,null,null,null,"WB19Q8007",2]
["CentralKolkata Total",null,null,12,null,null,null,"WB19Q3376",2]
["Dunlop","Sector V","Bally_NewTown_5019",1,{"$f":"VLOOKUP(C126,'[1]Raw Kolkata Stop level Route'!G:I,3,0)","v":"Tata Consultancy Service Business services Company"},null,null,"WB19Q6864",2]
[null,null,"Barrackpur_NewTown_5009",1,{"$f":"VLOOKUP(C127,'[1]Raw Kolkata Stop level Route'!G:I,3,0)","v":"Opposite to NBCC Shopping Centre Shopping center"},null,null,"WB25N9534",2]
[null,null,"Dunlop_Sector5_1001",5,{"$f":"VLOOKUP(C128,'[1]Raw Kolkata Stop level Route'!G:I,3,0)","v":"Wipro"},null,null,"WB19Q4902",2]
[null,null,"Naihati_NewTown_1002",1,{"$f":"VLOOKUP(C129,'[1]Raw Kolkata Stop level Route'!G:I,3,0)","v":"Karunamoyee"},null,null,"WB25P6264",2]
[null,null,"NewTown_Bally_5018",2,{"$f":"VLOOKUP(C130,'[1]Raw Kolkata Stop level Route'!G:I,3,0)","v":"DTDC Courier service"},null,null,"WB25M8763",2]
[null,null,"Sector5_Barrackpore_1001",1,{"$f":"VLOOKUP(C131,'[1]Raw Kolkata Stop level Route'!G:I,3,0)","v":"Ghosh Para Road"},null,null,"WB19L9907",2]
[null,null,"Sector5_Dunlop_1001",3,{"$f":"VLOOKUP(C132,'[1]Raw Kolkata Stop level Route'!G:I,3,0)","v":"Dunlop United Bank"},null,null,"WB19M1172",2]
[null,"Sector V Total",null,14,null,null,null,"WB25P5942",2]
["Dunlop Total",null,null,14,null,null,null,"WB19Q4769",2]
["Hatisala","Bally","Bally_Sector5_1003",1,{"$f":"VLOOKUP(C135,'[1]Raw Kolkata Stop level Route'!G:I,3,0)","v":"Wipro"},null,null,"WB25P8905",2]
[null,null,"Hastisala_Bally_1007",1,{"$f":"VLOOKUP(C136,'[1]Raw Kolkata Stop level Route'!G:I,3,0)","v":"Bally Bus Stop"},null,null,"WB11J1260",2]
[null,"Bally Total",null,2,null,null,null,"WB25P2356",2]
[null,"Barasat","Barasat_Hatisala_1003",1,{"$f":"VLOOKUP(C138,'[1]Raw Kolkata Stop level Route'!G:I,3,0)","v":"Infosysu00a0Businessu00a0Park (New Town)"},null,null,"WB19Q3422",2]
[null,null,"Barasat_Hatisala_5021",2,{"$f":"VLOOKUP(C139,'[1]Raw Kolkata Stop level Route'!G:I,3,0)","v":"opposite to Infosys Limited"},null,null,"WB19M0469",2]
[null,null,"Barasat_SectorV_5023",1,{"$f":"VLOOKUP(C140,'[1]Raw Kolkata Stop level Route'!G:I,3,0)","v":"College More Opp. Hyundai Showroom"},null,null,"WB19M2244",2]
[null,null,"Barrackpore_Sector5_1001",1,{"$f":"VLOOKUP(C141,'[1]Raw Kolkata Stop level Route'!G:I,3,0)","v":"Wipro"},null,null,"WB25P1060",2]
[null,null,"Barrackpur_NewTown_5007",1,{"$f":"VLOOKUP(C142,'[1]Raw Kolkata Stop level Route'!G:I,3,0)","v":"Unitech Gate 2"},null,null,"WB13C0657",2]
[null,null,"Hatisala_Barasat_5022",3,{"$f":"VLOOKUP(C143,'[1]Raw Kolkata Stop level Route'!G:I,3,0)","v":"Renault Car dealer, Automotive dealer"},null,null,"WB25P2786",2]
[null,null,"Hatisala_Barrackpore_1002",1,{"$f":"VLOOKUP(C144,'[1]Raw Kolkata Stop level Route'!G:I,3,0)","v":"Ghosh Para Road"},null,null,"WB19Q9732",2]
[null,null,"NewTown_Sonarpur_5058",1,{"$f":"VLOOKUP(C145,'[1]Raw Kolkata Stop level Route'!G:I,3,0)","v":"Opposite to Bansdroni busstop"},null,null,"WB07K2578",2]
[null,null,"Sector5_Barasat_1001",1,{"$f":"VLOOKUP(C146,'[1]Raw Kolkata Stop level Route'!G:I,3,0)","v":"Opp. BigBazar-Chapadali More"},null,null,"WB19Q9566",2]
[null,"Barasat Total",null,12,null,null,null,"WB25P2363",2]
[null,"Barrackpore","Barrackpore_Sector5_1001",1,{"$f":"VLOOKUP(C148,'[1]Raw Kolkata Stop level Route'!G:I,3,0)","v":"Wipro"},null,null,"WB19M2153",2]
[null,null,"Hatisala_Barrackpore_1002",1,{"$f":"VLOOKUP(C149,'[1]Raw Kolkata Stop level Route'!G:I,3,0)","v":"Ghosh Para Road"},null,null,"WB19M2007",2]
[null,null,"Sector5_Barasat_1001",1,{"$f":"VLOOKUP(C150,'[1]Raw Kolkata Stop level Route'!G:I,3,0)","v":"Opp. BigBazar-Chapadali More"},null,null,"WB19Q9229",2]
[null,null,"Sector5_Barrackpore_1001",2,{"$f":"VLOOKUP(C151,'[1]Raw Kolkata Stop level Route'!G:I,3,0)","v":"Ghosh Para Road"},null,null,"WB25L6997",2]
[null,"Barrackpore Total",null,5,null,null,null,"WB07V1394",2]
[null,"Dunlop","Bally_Hastisala_1007",1,{"$f":"VLOOKUP(C153,'[1]Raw Kolkata Stop level Route'!G:I,3,0)","v":"Infosysu00a0Businessu00a0Park (New Town)"},null,null,"WB25M7708",2]
[null,"Dunlop Total",null,1,null,null,null,"WB25M2533",2]
[null,"Ranikuthi","Hatisala_Ranikuthi_1006",1,{"$f":"VLOOKUP(C155,'[1]Raw Kolkata Stop level Route'!G:I,3,0)","v":"Madhumita Restaurant-Ranikuthi"},null,null,"WB19Q7724",2]
[null,"Ranikuthi Total",null,1,null,null,null,"WB25M9627",2]
[null,"Serampore","Hatisala_Serampore_1008",2,{"$f":"VLOOKUP(C157,'[1]Raw Kolkata Stop level Route'!G:I,3,0)","v":"Serampore Bus Stop"},null,null,"WB19Q7741",2]
[null,null,"Sector5_Serampore_1002",1,{"$f":"VLOOKUP(C158,'[1]Raw Kolkata Stop level Route'!G:I,3,0)","v":"Serampore Bus Stop"},null,null,"WB25M8574",2]
[null,null,"Serampore_Hatisala_1008",1,{"$f":"VLOOKUP(C159,'[1]Raw Kolkata Stop level Route'!G:I,3,0)","v":"Infosysu00a0Businessu00a0Park (New Town)"},null,null,"WB19Q7729",2]
[null,"Serampore Total",null,4,null,null,null,"WB19Q4506",2]
[null,"Sonarpur","Bally_NewTown_5017",1,{"$f":"VLOOKUP(C161,'[1]Raw Kolkata Stop level Route'!G:I,3,0)","v":"opposite to Narayana School"},null,null,"WB25M7706",2]
[null,null,"Hatisala_Sonarpur_5046",1,{"$f":"VLOOKUP(C162,'[1]Raw Kolkata Stop level Route'!G:I,3,0)","v":"Garia 5no. bus terminus"},null,null,"WB25M8664",2]
[null,null,"Ranikuthi_NewTown_1001",1,{"$f":"VLOOKUP(C163,'[1]Raw Kolkata Stop level Route'!G:I,3,0)","v":"National insurance - kadam pukur more bus stop"},null,null,"WB19Q7728",2]
[null,null,"SectorV_Sonarpur_5052",1,{"$f":"VLOOKUP(C164,'[1]Raw Kolkata Stop level Route'!G:I,3,0)","v":"Roy Store"},null,null,"WB19M1829",2]
[null,"Sonarpur Total",null,4,null,null,null,"WB19Q7740",2]
["Hatisala Total",null,null,28,null,null,null,"WB19M3260",2]
["Howrah","New Town","Howrah_NewTown_1006",1,{"$f":"VLOOKUP(C167,'[1]Raw Kolkata Stop level Route'!G:I,3,0)","v":"Ecospace Opp. Entry Gate"},null,null,"WB19Q7722",2]
[null,null,"NewTown_Howrah_5042",1,{"$f":"VLOOKUP(C168,'[1]Raw Kolkata Stop level Route'!G:I,3,0)","v":"Xpress Money Currency exchange"},null,null,"WB07K2548",2]
[null,"New Town Total",null,2,null,null,null,"WB19Q7730",2]
[null,"NewTown","CentralKolkata_NewTown_5035",1,{"$f":"VLOOKUP(C170,'[1]Raw Kolkata Stop level Route'!G:I,3,0)","v":"Deep Garage Car repair and service Repair shop"},null,null,"WB19Q5006",2]
[null,null,"Howrah_NewTown_5041",1,{"$f":"VLOOKUP(C171,'[1]Raw Kolkata Stop level Route'!G:I,3,0)","v":"Aliah University Bus Stop"},null,null,"WB25M7702",2]
[null,null,"Howrah_NewTown_5043",1,{"$f":"VLOOKUP(C172,'[1]Raw Kolkata Stop level Route'!G:I,3,0)","v":"Kara's Tea Stall Café"},null,null,"WB25M4692",2]
[null,null,"NewTown_Barrackpur_5010",1,{"$f":"VLOOKUP(C173,'[1]Raw Kolkata Stop level Route'!G:I,3,0)","v":"Motorola Showroom Shop"},null,null,"WB19Q7738",2]
[null,null,"NewTown_Howrah_5040",1,{"$f":"VLOOKUP(C174,'[1]Raw Kolkata Stop level Route'!G:I,3,0)","v":"Koley cycle co. scooter showroom shop"},null,null,"WB25P4421",2]
[null,null,"NewTown_Howrah_5042",1,{"$f":"VLOOKUP(C175,'[1]Raw Kolkata Stop level Route'!G:I,3,0)","v":"Xpress Money Currency exchange"},null,null,"WB19Q7732",2]
[null,null,"NewTown_Howrah_5044",3,{"$f":"VLOOKUP(C176,'[1]Raw Kolkata Stop level Route'!G:I,3,0)","v":"Near By SMART TEA SHOP"},null,null,"WB25M8745",2]
[null,null,"NewTown_Sonarpur_5058",1,{"$f":"VLOOKUP(C177,'[1]Raw Kolkata Stop level Route'!G:I,3,0)","v":"Opposite to Bansdroni busstop"},null,null,"WB19Q7726",2]
[null,"NewTown Total",null,10,null,null,null,"WB19Q4920",2]
["Howrah Total",null,null,12,null,null,null,"WB19Q7743",2]
["Jadavpur","New Town","Jadavpur_NewTown_1005",3,{"$f":"VLOOKUP(C180,'[1]Raw Kolkata Stop level Route'!G:I,3,0)","v":"Ecospace Opp. Entry Gate"},null,null,"WB05A2594",2]
[null,null,"New-town_Joka_1002",1,{"$f":"VLOOKUP(C181,'[1]Raw Kolkata Stop level Route'!G:I,3,0)","v":"Joke Diamond Club"},null,null,"WB25M1702",2]
[null,null,"NewTown_Jadavpur_1005",2,{"$f":"VLOOKUP(C182,'[1]Raw Kolkata Stop level Route'!G:I,3,0)","v":"Jadavpur Bus Stop"},null,null,"WB19Q7185",2]
[null,"New Town Total",null,6,null,null,null,"WB25M7703",2]
["Jadavpur Total",null,null,6,null,null,null,"WB25P6467",2]
["Jayashree Park","New Town","GreenField_NewTown_1003",3,{"$f":"VLOOKUP(C185,'[1]Raw Kolkata Stop level Route'!G:I,3,0)","v":"Ecospace Opp. Entry Gate"},null,null,"WB25M1700",2]
[null,null,"NewTown_GreenField_1003",1,{"$f":"VLOOKUP(C186,'[1]Raw Kolkata Stop level Route'!G:I,3,0)","v":"Greenfield City"},null,null,"WB25M8772",2]
[null,null,"NewTown_Santragachi_1005",1,{"$f":"VLOOKUP(C187,'[1]Raw Kolkata Stop level Route'!G:I,3,0)","v":"The Gate Way - Santragachi"},null,null,"WB25M1708",2]
[null,null,"Thakurpukur_NewTown_1001",1,{"$f":"VLOOKUP(C188,'[1]Raw Kolkata Stop level Route'!G:I,3,0)","v":"National insurance-kadam pukur more bus stop"},null,null,"WB05B3531",2]
[null,"New Town Total",null,6,null,null,null,"WB19Q7735",2]
["Jayashree Park Total",null,null,6,null,null,null,"WB19Q4641",2]
["Joka","New Town","BudgeBudge_NewTown_5031",1,{"$f":"VLOOKUP(C191,'[1]Raw Kolkata Stop level Route'!G:I,3,0)","v":"Tata Consultancy Service Business services Company"},null,null,"WB23H1894",2]
[null,null,"Joka_New-Town_1002",4,{"$f":"VLOOKUP(C192,'[1]Raw Kolkata Stop level Route'!G:I,3,0)","v":"Kadam Pukur More Bus Stop"},null,null,"WB19R0080",2]
[null,null,"New-town_Joka_1002",1,{"$f":"VLOOKUP(C193,'[1]Raw Kolkata Stop level Route'!G:I,3,0)","v":"Joke Diamond Club"},null,null,"WB23J2398",2]
[null,null,"NewTown_BudgeBudge_5028",1,{"$f":"VLOOKUP(C194,'[1]Raw Kolkata Stop level Route'!G:I,3,0)","v":"Vivekananda Mission school Bus stop"},null,null,"WB19Q3573",2]
[null,null,"NewTown_GreenField_1003",1,{"$f":"VLOOKUP(C195,'[1]Raw Kolkata Stop level Route'!G:I,3,0)","v":"Greenfield City"},null,null,"WB19Q7908",2]
[null,null,"NewTown_Ranikuthi_1001",1,{"$f":"VLOOKUP(C196,'[1]Raw Kolkata Stop level Route'!G:I,3,0)","v":"Madhumita Restaurant-Ranikuthi"},null,null,"WB19Q8917",3]
[null,null,"NewTown_Thakurpukur_1001",1,{"$f":"VLOOKUP(C197,'[1]Raw Kolkata Stop level Route'!G:I,3,0)","v":"Genexx Valley"},null,null,"WB25N7759",3]
[null,null,"NewTown_Tollygunge (METRO) _1002",1,{"$f":"VLOOKUP(C198,'[1]Raw Kolkata Stop level Route'!G:I,3,0)","v":"Mahanayak Uttam kumar"},null,null,"WB25N9610",3]
[null,null,"Sonarpur_NewTown_5047",1,{"$f":"VLOOKUP(C199,'[1]Raw Kolkata Stop level Route'!G:I,3,0)","v":"Kara's Tea Stall Café"},null,null,"WB25N9350",3]
[null,"New Town Total",null,12,null,null,null,"WB19L9906",3]
["Joka Total",null,null,12,null,null,null,"WB25P4496",3]
["Kadampukur","BudgeBudge","Sonarpur_NewTown_5055",1,{"$f":"VLOOKUP(C202,'[1]Raw Kolkata Stop level Route'!G:I,3,0)","v":"Kara's Tea Stall Café"},null,null,"WB25N8886",3]
[null,"BudgeBudge Total",null,1,null,null,null,"WB25P3762",3]
[null,"Howrah","Barasat_SectorV_5023",1,{"$f":"VLOOKUP(C204,'[1]Raw Kolkata Stop level Route'!G:I,3,0)","v":"College More Opp. Hyundai Showroom"},null,null,"WB19Q5410",3]
[null,null,"Tikiapara_NewTown_1001",1,{"$f":"VLOOKUP(C205,'[1]Raw Kolkata Stop level Route'!G:I,3,0)","v":"National insurance-kadam pukur more bus stop"},null,null,"WB25P2569",3]
[null,null,{"$error":"#N/A"},1,null,null,null,"WB25P4422",3]
[null,"Howrah Total",null,3,null,null,null,"WB25N9888",3]
[null,"Sonarpur","Joka_New-Town_1002",1,{"$f":"VLOOKUP(C208,'[1]Raw Kolkata Stop level Route'!G:I,3,0)","v":"Kadam Pukur More Bus Stop"},null,null,"WB19Q4614",3]
[null,null,"NewTown_Sonarpur_5050",1,{"$f":"VLOOKUP(C209,'[1]Raw Kolkata Stop level Route'!G:I,3,0)","v":"Thakurpukur Co-operative Housing Society"},null,null,"WB19Q6697",3]
[null,null,"Sonarpur_NewTown_5055",1,{"$f":"VLOOKUP(C210,'[1]Raw Kolkata Stop level Route'!G:I,3,0)","v":"Kara's Tea Stall Café"},null,null,"WB19Q1060",3]
[null,"Sonarpur Total",null,3,null,null,null,"WB07V6474",3]
["Kadampukur Total",null,null,7,null,null,null,"WB25M8700",3]
["Naihati","New Town","Bally_Sector5_1003",1,{"$f":"VLOOKUP(C213,'[1]Raw Kolkata Stop level Route'!G:I,3,0)","v":"Wipro"},null,null,"WB19Q0847",3]
[null,null,"Naihati_NewTown_1002",1,{"$f":"VLOOKUP(C214,'[1]Raw Kolkata Stop level Route'!G:I,3,0)","v":"Karunamoyee"},null,null,"WB19Q9714",3]
[null,"New Town Total",null,2,null,null,null,"WB25P2104",3]
["Naihati Total",null,null,2,null,null,null,"WB25P7273",3]
["New Town","Bauripur","Bally_NewTown_5017",1,{"$f":"VLOOKUP(C217,'[1]Raw Kolkata Stop level Route'!G:I,3,0)","v":"opposite to Narayana School"},null,null,"WB25P2388",3]
[null,null,"Bauripur_NewTown_1001",7,{"$f":"VLOOKUP(C218,'[1]Raw Kolkata Stop level Route'!G:I,3,0)","v":"Ecospace Opp. Entry Gate"},null,null,"WB19P6925",3]
[null,null,"NewTown_Bauripur_1001",4,{"$f":"VLOOKUP(C219,'[1]Raw Kolkata Stop level Route'!G:I,3,0)","v":"Opposite Rabindra Bhavan"},null,null,"WB19Q0828",3]
[null,null,"NewTown_Sonarpur_1001",1,{"$f":"VLOOKUP(C220,'[1]Raw Kolkata Stop level Route'!G:I,3,0)","v":"Sonarpur Sadharan Sammilani"},null,null,"WB19Q4101",3]
[null,null,"NewTown_Sonarpur_5054",1,{"$f":"VLOOKUP(C221,'[1]Raw Kolkata Stop level Route'!G:I,3,0)","v":"Haraharitala Bus stop"},null,null,"WB11G7860",3]
[null,null,"Sonarpur_NewTown_1001",1,{"$f":"VLOOKUP(C222,'[1]Raw Kolkata Stop level Route'!G:I,3,0)","v":"Ecospace Opp. Entry Gate"},null,null,"WB25M6300",3]
[null,null,"Sonarpur_NewTown_5055",1,{"$f":"VLOOKUP(C223,'[1]Raw Kolkata Stop level Route'!G:I,3,0)","v":"Kara's Tea Stall Café"},null,null,"WB25N9003",3]
[null,null,{"$error":"#N/A"},1,null,null,null,"WB25P4555",3]
[null,"Bauripur Total",null,17,null,null,null,"WB25P8055",3]
[null,"Bijoygarh","Bijaygarh_Newtown_1003",1,{"$f":"VLOOKUP(C226,'[1]Raw Kolkata Stop level Route'!G:I,3,0)","v":"Ecospace Opp. Entry Gate"},null,null,"WB19Q6626",3]
[null,null,"Jadavpur_NewTown_1005",1,{"$f":"VLOOKUP(C227,'[1]Raw Kolkata Stop level Route'!G:I,3,0)","v":"Ecospace Opp. Entry Gate"},null,null,"WB25N8470",3]
[null,null,"Newtown_Bijaygarh_1003",1,{"$f":"VLOOKUP(C228,'[1]Raw Kolkata Stop level Route'!G:I,3,0)","v":"BijayGarh-Pallisree"},null,null,"WB19M3502",3]
[null,null,"Ranikuthi_NewTown_1001",1,{"$f":"VLOOKUP(C229,'[1]Raw Kolkata Stop level Route'!G:I,3,0)","v":"National insurance - kadam pukur more bus stop"},null,null,"WB19Q4766",3]
[null,null,"Tollygunge(PrinceAnwar)_NewTown_1004",1,{"$f":"VLOOKUP(C230,'[1]Raw Kolkata Stop level Route'!G:I,3,0)","v":"Ecospace Opp. Entry Gate"},null,null,"WB13B8225",3]
[null,"Bijoygarh Total",null,5,null,null,null,"WB11H8778",3]
[null,"Howrah","Howrah_NewTown_1006",1,{"$f":"VLOOKUP(C232,'[1]Raw Kolkata Stop level Route'!G:I,3,0)","v":"Ecospace Opp. Entry Gate"},null,null,"WB19P9631",3]
[null,null,"Howrah_NewTown_5041",1,{"$f":"VLOOKUP(C233,'[1]Raw Kolkata Stop level Route'!G:I,3,0)","v":"Aliah University Bus Stop"},null,null,"WB19M1827",3]
[null,null,"NewTown_Howrah_1006",1,{"$f":"VLOOKUP(C234,'[1]Raw Kolkata Stop level Route'!G:I,3,0)","v":"Howrah Railway Museum"},null,null,"WB19S5989",3]
[null,"Howrah Total",null,3,null,null,null,"WB11F7496",3]
[null,"Jadavpur","CentralKolkata_NewTown_5035",1,{"$f":"VLOOKUP(C236,'[1]Raw Kolkata Stop level Route'!G:I,3,0)","v":"Deep Garage Car repair and service Repair shop"},null,null,"WB11J3221",3]
[null,null,"Jadavpur_NewTown_1005",2,{"$f":"VLOOKUP(C237,'[1]Raw Kolkata Stop level Route'!G:I,3,0)","v":"Ecospace Opp. Entry Gate"},null,null,"WB19Q1104",3]
[null,null,"NewTown_Jadavpur_1005",3,{"$f":"VLOOKUP(C238,'[1]Raw Kolkata Stop level Route'!G:I,3,0)","v":"Jadavpur Bus Stop"},null,null,"WB19Q1064",3]
[null,null,"NewTown_Sonarpur_5058",1,{"$f":"VLOOKUP(C239,'[1]Raw Kolkata Stop level Route'!G:I,3,0)","v":"Opposite to Bansdroni busstop"},null,null,"WB19M2888",3]
[null,null,"Ranikuthi_NewTown_1001",1,{"$f":"VLOOKUP(C240,'[1]Raw Kolkata Stop level Route'!G:I,3,0)","v":"National insurance - kadam pukur more bus stop"},null,null,"WB19Q0638",3]
[null,null,"Tollygunge (METRO)_NewTown_1002",1,{"$f":"VLOOKUP(C241,'[1]Raw Kolkata Stop level Route'!G:I,3,0)","v":"Kadampukur More Bus Stop"},null,null,"WB19Q3532",3]
[null,"Jadavpur Total",null,9,null,null,null,"WB05B2514",3]
[null,"Jayashree Park","GreenField_NewTown_1003",3,{"$f":"VLOOKUP(C243,'[1]Raw Kolkata Stop level Route'!G:I,3,0)","v":"Ecospace Opp. Entry Gate"},null,null,"WB19Q3445",3]
[null,null,"New-town_Joka_1002",2,{"$f":"VLOOKUP(C244,'[1]Raw Kolkata Stop level Route'!G:I,3,0)","v":"Joke Diamond Club"},null,null,"WB25M8610",3]
[null,null,"NewTown_GreenField_1003",3,{"$f":"VLOOKUP(C245,'[1]Raw Kolkata Stop level Route'!G:I,3,0)","v":"Greenfield City"},null,null,"WB19Q2900",3]
[null,"Jayashree Park Total",null,8,null,null,null,"WB19M0630",3]
[null,"Joka","Barrackpur_NewTown_5011",1,{"$f":"VLOOKUP(C247,'[1]Raw Kolkata Stop level Route'!G:I,3,0)","v":"Kara's Tea Stall Café"},null,null,"WB19Q3379",3]
[null,null,"BudgeBudge_NewTown_5031",1,{"$f":"VLOOKUP(C248,'[1]Raw Kolkata Stop level Route'!G:I,3,0)","v":"Tata Consultancy Service Business services Company"},null,null,"WB19Q9645",3]
[null,null,"GreenField_NewTown_1003",2,{"$f":"VLOOKUP(C249,'[1]Raw Kolkata Stop level Route'!G:I,3,0)","v":"Ecospace Opp. Entry Gate"},null,null,"WB19Q8446",3]
[null,null,"Joka_New-Town_1002",2,{"$f":"VLOOKUP(C250,'[1]Raw Kolkata Stop level Route'!G:I,3,0)","v":"Kadam Pukur More Bus Stop"},null,null,"WB25P7444",3]
[null,null,"New-town_Joka_1002",4,{"$f":"VLOOKUP(C251,'[1]Raw Kolkata Stop level Route'!G:I,3,0)","v":"Joke Diamond Club"},null,null,"WB19M2717",3]
[null,null,"NewTown_Ranikuthi_1001",2,{"$f":"VLOOKUP(C252,'[1]Raw Kolkata Stop level Route'!G:I,3,0)","v":"Madhumita Restaurant-Ranikuthi"},null,null,"WB19M1858",3]
[null,null,"Ranikuthi_NewTown_1001",1,{"$f":"VLOOKUP(C253,'[1]Raw Kolkata Stop level Route'!G:I,3,0)","v":"National insurance - kadam pukur more bus stop"},null,null,"WB25P7629",3]
[null,null,"Sector5_Bally_1003",1,{"$f":"VLOOKUP(C254,'[1]Raw Kolkata Stop level Route'!G:I,3,0)","v":"Bally Bus Stop"},null,null,"WB25M5400",3]
[null,null,"Sonarpur_NewTown_5047",1,{"$f":"VLOOKUP(C255,'[1]Raw Kolkata Stop level Route'!G:I,3,0)","v":"Kara's Tea Stall Café"},null,null,"WB05B3202",3]
[null,null,"Thakurpukur_NewTown_1001",1,{"$f":"VLOOKUP(C256,'[1]Raw Kolkata Stop level Route'!G:I,3,0)","v":"National insurance-kadam pukur more bus stop"},null,null,"WB19Q1555",3]
[null,null,"Tollygunge (METRO)_NewTown_1002",1,{"$f":"VLOOKUP(C257,'[1]Raw Kolkata Stop level Route'!G:I,3,0)","v":"Kadampukur More Bus Stop"},null,null,"WB25P1055",3]
[null,"Joka Total",null,17,null,null,null,"WB19Q4420",3]
[null,"Naihati","Bally_Sector5_1003",1,{"$f":"VLOOKUP(C259,'[1]Raw Kolkata Stop level Route'!G:I,3,0)","v":"Wipro"},null,null,"WB25P3752",3]
[null,null,"Naihati_NewTown_1002",1,{"$f":"VLOOKUP(C260,'[1]Raw Kolkata Stop level Route'!G:I,3,0)","v":"Karunamoyee"},null,null,"WB19Q2330",3]
[null,"Naihati Total",null,2,null,null,null,"WB25P3347",3]
[null,"Parnasree","NewTown_Howrah_1006",1,{"$f":"VLOOKUP(C262,'[1]Raw Kolkata Stop level Route'!G:I,3,0)","v":"Howrah Railway Museum"},null,null,"WB19Q3362",3]
[null,null,"NewTown_Ranikuthi_1001",1,{"$f":"VLOOKUP(C263,'[1]Raw Kolkata Stop level Route'!G:I,3,0)","v":"Madhumita Restaurant-Ranikuthi"},null,null,"WB25P9550",3]
[null,null,"NewTown_Thakurpukur_1001",1,{"$f":"VLOOKUP(C264,'[1]Raw Kolkata Stop level Route'!G:I,3,0)","v":"Genexx Valley"},null,null,"WB19Q7482",3]
[null,null,"NewTown-Parnasree-1001",6,{"$f":"VLOOKUP(C265,'[1]Raw Kolkata Stop level Route'!G:I,3,0)","v":"Parnasree Lake"},null,null,"WB25P2405",3]
[null,null,"Parnasree-NewTown-1001",10,{"$f":"VLOOKUP(C266,'[1]Raw Kolkata Stop level Route'!G:I,3,0)","v":"National insurance-kadam pukur more bus stop"},null,null,"WB25M8628",3]
[null,null,"Ranikuthi_NewTown_1001",1,{"$f":"VLOOKUP(C267,'[1]Raw Kolkata Stop level Route'!G:I,3,0)","v":"National insurance - kadam pukur more bus stop"},null,null,"WB25P2352",3]
[null,null,"Thakurpukur_NewTown_1001",1,{"$f":"VLOOKUP(C268,'[1]Raw Kolkata Stop level Route'!G:I,3,0)","v":"National insurance-kadam pukur more bus stop"},null,null,"WB19Q6630",3]
[null,"Parnasree Total",null,21,null,null,null,"WB19Q6096",3]
[null,"Ranikuthi","Bijaygarh_Newtown_1003",2,{"$f":"VLOOKUP(C270,'[1]Raw Kolkata Stop level Route'!G:I,3,0)","v":"Ecospace Opp. Entry Gate"},null,null,"WB05B3241",3]
[null,null,"BudgeBudge_NewTown_5029",1,{"$f":"VLOOKUP(C271,'[1]Raw Kolkata Stop level Route'!G:I,3,0)","v":"Aliah University Bus Stop"},null,null,"WB25P2383",3]
[null,null,"Dunlop_Sector5_1001",1,{"$f":"VLOOKUP(C272,'[1]Raw Kolkata Stop level Route'!G:I,3,0)","v":"Wipro"},null,null,"WB19Q5624",3]
[null,null,"Jadavpur_NewTown_1005",1,{"$f":"VLOOKUP(C273,'[1]Raw Kolkata Stop level Route'!G:I,3,0)","v":"Ecospace Opp. Entry Gate"},null,null,"WB19Q1607",3]
[null,null,"NewTown_Bally_5018",1,{"$f":"VLOOKUP(C274,'[1]Raw Kolkata Stop level Route'!G:I,3,0)","v":"DTDC Courier service"},null,null,"WB19Q4380",3]
[null,null,"NewTown_Jadavpur_1005",1,{"$f":"VLOOKUP(C275,'[1]Raw Kolkata Stop level Route'!G:I,3,0)","v":"Jadavpur Bus Stop"},null,null,"WB19Q1820",3]
[null,null,"NewTown_Ranikuthi_1001",7,{"$f":"VLOOKUP(C276,'[1]Raw Kolkata Stop level Route'!G:I,3,0)","v":"Madhumita Restaurant-Ranikuthi"},null,null,"WB19M5323",3]
[null,null,"NewTown_Sonarpur_1001",1,{"$f":"VLOOKUP(C277,'[1]Raw Kolkata Stop level Route'!G:I,3,0)","v":"Sonarpur Sadharan Sammilani"},null,null,"WB25P0463",3]
[null,null,"NewTown_Tollygunge (METRO) _1002",2,{"$f":"VLOOKUP(C278,'[1]Raw Kolkata Stop level Route'!G:I,3,0)","v":"Mahanayak Uttam kumar"},null,null,"WB19Q4200",3]
[null,null,"Parnasree-NewTown-1001",1,{"$f":"VLOOKUP(C279,'[1]Raw Kolkata Stop level Route'!G:I,3,0)","v":"National insurance-kadam pukur more bus stop"},null,null,"WB25P1974",3]
[null,null,"Ranikuthi_NewTown_1001",8,{"$f":"VLOOKUP(C280,'[1]Raw Kolkata Stop level Route'!G:I,3,0)","v":"National insurance - kadam pukur more bus stop"},null,null,"WB19M1557",3]
[null,null,"Sector5_Bally_1003",1,{"$f":"VLOOKUP(C281,'[1]Raw Kolkata Stop level Route'!G:I,3,0)","v":"Bally Bus Stop"},null,null,"WB25N8385",3]
[null,null,"Sonarpur_NewTown_1001",1,{"$f":"VLOOKUP(C282,'[1]Raw Kolkata Stop level Route'!G:I,3,0)","v":"Ecospace Opp. Entry Gate"},null,null,"WB25M4500",3]
[null,null,"Sonarpur_NewTown_5057",1,{"$f":"VLOOKUP(C283,'[1]Raw Kolkata Stop level Route'!G:I,3,0)","v":"Mani Casa Government Office"},null,null,"WB19M1312",3]
[null,null,"Thakurpukur_NewTown_1001",1,{"$f":"VLOOKUP(C284,'[1]Raw Kolkata Stop level Route'!G:I,3,0)","v":"National insurance-kadam pukur more bus stop"},null,null,"WB19M3294",3]
[null,null,"Tollygunge (METRO)_NewTown_1002",3,{"$f":"VLOOKUP(C285,'[1]Raw Kolkata Stop level Route'!G:I,3,0)","v":"Kadampukur More Bus Stop"},null,null,"WB19Q7236",3]
[null,"Ranikuthi Total",null,33,null,null,null,"WB19Q0824",3]
[null,"Santragachi","NewTown_Howrah_5042",1,{"$f":"VLOOKUP(C287,'[1]Raw Kolkata Stop level Route'!G:I,3,0)","v":"Xpress Money Currency exchange"},null,null,"WB19M2503",3]
[null,null,"NewTown_Santragachi_1005",1,{"$f":"VLOOKUP(C288,'[1]Raw Kolkata Stop level Route'!G:I,3,0)","v":"The Gate Way - Santragachi"},null,null,"WB05A4005",3]
[null,"Santragachi Total",null,2,null,null,null,"WB25P4222",3]
[null,"Sonarpur","Bauripur_NewTown_1001",1,{"$f":"VLOOKUP(C290,'[1]Raw Kolkata Stop level Route'!G:I,3,0)","v":"Ecospace Opp. Entry Gate"},null,null,"WB19Q0646",3]
[null,null,"BudgeBudge_NewTown_5027",1,{"$f":"VLOOKUP(C291,'[1]Raw Kolkata Stop level Route'!G:I,3,0)","v":"Mani Casa Government office"},null,null,"WB25P7111",3]
[null,null,"CentralKolkata_NewTown_5035",1,{"$f":"VLOOKUP(C292,'[1]Raw Kolkata Stop level Route'!G:I,3,0)","v":"Deep Garage Car repair and service Repair shop"},null,null,"WB19P6979",3]
[null,null,"Howrah_NewTown_5043",1,{"$f":"VLOOKUP(C293,'[1]Raw Kolkata Stop level Route'!G:I,3,0)","v":"Kara's Tea Stall Café"},null,null,"WB25P5159",3]
[null,null,"NewTown_Jadavpur_1005",2,{"$f":"VLOOKUP(C294,'[1]Raw Kolkata Stop level Route'!G:I,3,0)","v":"Jadavpur Bus Stop"},null,null,"WB07V8274",3]
[null,null,"NewTown_Sonarpur_1001",10,{"$f":"VLOOKUP(C295,'[1]Raw Kolkata Stop level Route'!G:I,3,0)","v":"Sonarpur Sadharan Sammilani"},null,null,"WB25N9622",3]
[null,null,"Sector5_Barrackpore_1001",1,{"$f":"VLOOKUP(C296,'[1]Raw Kolkata Stop level Route'!G:I,3,0)","v":"Ghosh Para Road"},null,null,"WB19L9728",3]
[null,null,"SectorV_Barrackpur_5016",1,{"$f":"VLOOKUP(C297,'[1]Raw Kolkata Stop level Route'!G:I,3,0)","v":"Barrackpore More Bus Stop"},null,null,"WB25M4280",3]
[null,null,"Serampore_Sector5_1002",1,{"$f":"VLOOKUP(C298,'[1]Raw Kolkata Stop level Route'!G:I,3,0)","v":"Wipro"},null,null,"WB19P9794",3]
[null,null,"Sonarpur_NewTown_1001",9,{"$f":"VLOOKUP(C299,'[1]Raw Kolkata Stop level Route'!G:I,3,0)","v":"Ecospace Opp. Entry Gate"},null,null,"WB25N8111",3]
[null,null,"Tollygunge(PrinceAnwar)_NewTown_1004",2,{"$f":"VLOOKUP(C300,'[1]Raw Kolkata Stop level Route'!G:I,3,0)","v":"Ecospace Opp. Entry Gate"},null,null,"WB19Q0026",3]
[null,"Sonarpur Total",null,30,null,null,null,"WB19Q7742",3]
[null,"Thakurpukur","Hatisala_Barasat_5022",1,{"$f":"VLOOKUP(C302,'[1]Raw Kolkata Stop level Route'!G:I,3,0)","v":"Renault Car dealer, Automotive dealer"},null,null,"WB19Q0296",3]
[null,null,"Joka_New-Town_1002",2,{"$f":"VLOOKUP(C303,'[1]Raw Kolkata Stop level Route'!G:I,3,0)","v":"Kadam Pukur More Bus Stop"},null,null,"WB25M1703",3]
[null,null,"New-town_Joka_1002",1,{"$f":"VLOOKUP(C304,'[1]Raw Kolkata Stop level Route'!G:I,3,0)","v":"Joke Diamond Club"},null,null,"WB05A4057",3]
[null,null,"NewTown_GreenField_1003",1,{"$f":"VLOOKUP(C305,'[1]Raw Kolkata Stop level Route'!G:I,3,0)","v":"Greenfield City"},null,null,"WB25M7717",3]
[null,null,"NewTown_Santragachi_1005",1,{"$f":"VLOOKUP(C306,'[1]Raw Kolkata Stop level Route'!G:I,3,0)","v":"The Gate Way - Santragachi"},null,null,"WB25N9619",3]
[null,null,"NewTown_Thakurpukur_1001",8,{"$f":"VLOOKUP(C307,'[1]Raw Kolkata Stop level Route'!G:I,3,0)","v":"Genexx Valley"},null,null,"WB25M1701",3]
[null,null,"Parnasree-NewTown-1001",1,{"$f":"VLOOKUP(C308,'[1]Raw Kolkata Stop level Route'!G:I,3,0)","v":"National insurance-kadam pukur more bus stop"},null,null,"WB25P8077",3]
[null,null,"Thakurpukur_NewTown_1001",10,{"$f":"VLOOKUP(C309,'[1]Raw Kolkata Stop level Route'!G:I,3,0)","v":"National insurance-kadam pukur more bus stop"},null,null,"WB25M7705",3]
[null,null,"Tollygunge (METRO)_NewTown_1002",1,{"$f":"VLOOKUP(C310,'[1]Raw Kolkata Stop level Route'!G:I,3,0)","v":"Kadampukur More Bus Stop"},null,null,"WB19Q1477",3]
[null,null,{"$error":"#N/A"},1,null,null,null,"WB05B1815",3]
[null,"Thakurpukur Total",null,27,null,null,null,"WB19Q6044",3]
[null,"Tikiapara","NewTown_Tikiapara_1001",2,{"$f":"VLOOKUP(C313,'[1]Raw Kolkata Stop level Route'!G:I,3,0)","v":"Adi Guru Shankaracharya Temple - Tikiapara"},null,null,"WB19Q7734",3]
[null,null,"Ranikuthi_NewTown_1001",1,{"$f":"VLOOKUP(C314,'[1]Raw Kolkata Stop level Route'!G:I,3,0)","v":"National insurance - kadam pukur more bus stop"},null,null,"WB19Q1061",3]
[null,null,"Tikiapara_NewTown_1001",2,{"$f":"VLOOKUP(C315,'[1]Raw Kolkata Stop level Route'!G:I,3,0)","v":"National insurance-kadam pukur more bus stop"},null,null,"WB19M2982",3]
[null,null,"Tollygunge(PrinceAnwar)_NewTown_1004",1,{"$f":"VLOOKUP(C316,'[1]Raw Kolkata Stop level Route'!G:I,3,0)","v":"Ecospace Opp. Entry Gate"},null,null,"WB11K8823",3]
[null,"Tikiapara Total",null,6,null,null,null,"WB25M1707",3]
[null,"Tollygunge Prince Anwar","CentralKolkata_NewTown_5035",1,{"$f":"VLOOKUP(C318,'[1]Raw Kolkata Stop level Route'!G:I,3,0)","v":"Deep Garage Car repair and service Repair shop"},null,null,"WB25M8709",3]
[null,null,"GreenField_NewTown_1003",1,{"$f":"VLOOKUP(C319,'[1]Raw Kolkata Stop level Route'!G:I,3,0)","v":"Ecospace Opp. Entry Gate"},null,null,"WB25M1704",3]
[null,null,"Jadavpur_NewTown_1005",1,{"$f":"VLOOKUP(C320,'[1]Raw Kolkata Stop level Route'!G:I,3,0)","v":"Ecospace Opp. Entry Gate"},null,null,"WB19R0806",3]
[null,null,"Joka_New-Town_1002",1,{"$f":"VLOOKUP(C321,'[1]Raw Kolkata Stop level Route'!G:I,3,0)","v":"Kadam Pukur More Bus Stop"},null,null,"WB07K2973",3]
[null,null,"Newtown_Bijaygarh_1003",1,{"$f":"VLOOKUP(C322,'[1]Raw Kolkata Stop level Route'!G:I,3,0)","v":"BijayGarh-Pallisree"},null,null,"WB19Q7199",3]
[null,null,"NewTown_Santragachi_1005",2,{"$f":"VLOOKUP(C323,'[1]Raw Kolkata Stop level Route'!G:I,3,0)","v":"The Gate Way - Santragachi"},null,null,"WB19Q7727",3]
[null,null,"NewTown_Tollygunge (METRO) _1002",7,{"$f":"VLOOKUP(C324,'[1]Raw Kolkata Stop level Route'!G:I,3,0)","v":"Mahanayak Uttam kumar"},null,null,"WB13B8178",3]
[null,null,"NewTown_Tollygunge(PrinceAnwar)_1004",7,{"$f":"VLOOKUP(C325,'[1]Raw Kolkata Stop level Route'!G:I,3,0)","v":"Mahanayak Uttam kumar"},null,null,"WB19Q5397",3]
[null,null,"NewTown-Parnasree-1001",1,{"$f":"VLOOKUP(C326,'[1]Raw Kolkata Stop level Route'!G:I,3,0)","v":"Parnasree Lake"},null,null,"WB19Q4668",3]
[null,null,"Ranikuthi_NewTown_1001",3,{"$f":"VLOOKUP(C327,'[1]Raw Kolkata Stop level Route'!G:I,3,0)","v":"National insurance - kadam pukur more bus stop"},null,null,"WB23G0130",3]
[null,null,"SectorV_Sonarpur_5052",1,{"$f":"VLOOKUP(C328,'[1]Raw Kolkata Stop level Route'!G:I,3,0)","v":"Roy Store"},null,null,"WB25P5162",3]
[null,null,"Sonarpur_NewTown_1001",1,{"$f":"VLOOKUP(C329,'[1]Raw Kolkata Stop level Route'!G:I,3,0)","v":"Ecospace Opp. Entry Gate"},null,null,"WB19Q7733",3]
[null,null,"Sonarpur_NewTown_5049",1,{"$f":"VLOOKUP(C330,'[1]Raw Kolkata Stop level Route'!G:I,3,0)","v":"Aliah University Bus Stop"},null,null,"WB19Q0875",3]
[null,null,"Sonarpur_NewTown_5057",1,{"$f":"VLOOKUP(C331,'[1]Raw Kolkata Stop level Route'!G:I,3,0)","v":"Mani Casa Government Office"},null,null,"WB19M2707",3]
[null,null,"Tollygunge (METRO)_NewTown_1002",3,{"$f":"VLOOKUP(C332,'[1]Raw Kolkata Stop level Route'!G:I,3,0)","v":"Kadampukur More Bus Stop"},null,null,"WB25M8673",3]
[null,null,"Tollygunge(PrinceAnwar)_NewTown_1004",3,{"$f":"VLOOKUP(C333,'[1]Raw Kolkata Stop level Route'!G:I,3,0)","v":"Ecospace Opp. Entry Gate"},null,null,"WB25P3272",3]
[null,"Tollygunge Prince Anwar Total",null,35,null,null,null,"WB29D9086",3]
["New Town Total",null,null,194,null,null,null,"WB19Q7195",3]
["NewTown","Bally","Bally_NewTown_5017",3,{"$f":"VLOOKUP(C336,'[1]Raw Kolkata Stop level Route'!G:I,3,0)","v":"opposite to Narayana School"},null,null,"WB25N9128",3]
[null,null,"Bally_NewTown_5019",1,{"$f":"VLOOKUP(C337,'[1]Raw Kolkata Stop level Route'!G:I,3,0)","v":"Tata Consultancy Service Business services Company"},null,null,"WB19Q7737",3]
[null,null,"Barrackpur_NewTown_5007",1,{"$f":"VLOOKUP(C338,'[1]Raw Kolkata Stop level Route'!G:I,3,0)","v":"Unitech Gate 2"},null,null,"WB19Q3003",3]
[null,null,"Barrackpur_NewTown_5009",1,{"$f":"VLOOKUP(C339,'[1]Raw Kolkata Stop level Route'!G:I,3,0)","v":"Opposite to NBCC Shopping Centre Shopping center"},null,null,"WB19R2074",3]
[null,null,"Bijaygarh_Newtown_1003",1,{"$f":"VLOOKUP(C340,'[1]Raw Kolkata Stop level Route'!G:I,3,0)","v":"Ecospace Opp. Entry Gate"},null,null,"WB19Q6277",3]
[null,null,"NewTown_Bally_5018",6,{"$f":"VLOOKUP(C341,'[1]Raw Kolkata Stop level Route'!G:I,3,0)","v":"DTDC Courier service"},null,null,"WB19L6345",3]
[null,null,"NewTown_Bally_5020",1,{"$f":"VLOOKUP(C342,'[1]Raw Kolkata Stop level Route'!G:I,3,0)","v":"bamon danga bus stop"},null,null,"WB25N9136",3]
[null,null,"Sector5_Bally_1003",1,{"$f":"VLOOKUP(C343,'[1]Raw Kolkata Stop level Route'!G:I,3,0)","v":"Bally Bus Stop"},null,null,"WB19R0052",3]
[null,"Bally Total",null,15,null,null,null,"WB19Q7789",3]
[null,"Barrackpore","Barrackpore_Sector5_1001",1,{"$f":"VLOOKUP(C345,'[1]Raw Kolkata Stop level Route'!G:I,3,0)","v":"Wipro"},null,null,"WB19R0085",3]
[null,null,"NewTown_Barrackpur_5008",3,{"$f":"VLOOKUP(C346,'[1]Raw Kolkata Stop level Route'!G:I,3,0)","v":"Chiriya More (Hindu School Ground)"},null,null,"WB19Q6632",3]
[null,null,"Sector5_Barrackpore_1001",2,{"$f":"VLOOKUP(C347,'[1]Raw Kolkata Stop level Route'!G:I,3,0)","v":"Ghosh Para Road"},null,null,"WB25M1705",3]
[null,null,"Sonarpur_SectorV_5051",1,{"$f":"VLOOKUP(C348,'[1]Raw Kolkata Stop level Route'!G:I,3,0)","v":"College More First Gate"},null,null,"WB19Q3652",3]
[null,"Barrackpore Total",null,7,null,null,null,"WB19Q7723",3]
[null,"Barrackpur","Bally_NewTown_5017",1,{"$f":"VLOOKUP(C350,'[1]Raw Kolkata Stop level Route'!G:I,3,0)","v":"opposite to Narayana School"},null,null,"WB05A4392",3]
[null,null,"Barasat_Sector5_1001",1,{"$f":"VLOOKUP(C351,'[1]Raw Kolkata Stop level Route'!G:I,3,0)","v":"Wipro"},null,null,"WB25M7713",3]
[null,null,"Barrackpur_NewTown_5009",4,{"$f":"VLOOKUP(C352,'[1]Raw Kolkata Stop level Route'!G:I,3,0)","v":"Opposite to NBCC Shopping Centre Shopping center"},null,null,"WB19M1843",3]
[null,null,"Barrackpur_NewTown_5011",1,{"$f":"VLOOKUP(C353,'[1]Raw Kolkata Stop level Route'!G:I,3,0)","v":"Kara's Tea Stall Café"},null,null,"WB25M7716",3]
[null,null,"NewTown_Barrackpur_5004",2,{"$f":"VLOOKUP(C354,'[1]Raw Kolkata Stop level Route'!G:I,3,0)","v":"Motorola Showroom Shop"},null,null,"WB07W9576",3]
[null,null,"NewTown_Barrackpur_5008",1,{"$f":"VLOOKUP(C355,'[1]Raw Kolkata Stop level Route'!G:I,3,0)","v":"Chiriya More (Hindu School Ground)"},null,null,"WB25M7710",3]
[null,null,"NewTown_Barrackpur_5010",2,{"$f":"VLOOKUP(C356,'[1]Raw Kolkata Stop level Route'!G:I,3,0)","v":"Motorola Showroom Shop"},null,null,"WB19Q0891",3]
[null,null,"NewTown_Barrackpur_5012",3,{"$f":"VLOOKUP(C357,'[1]Raw Kolkata Stop level Route'!G:I,3,0)","v":"Milan Chakra Gronthagar Library"},null,null,"WB25M1709",3]
[null,null,"Ranikuthi_NewTown_1001",1,{"$f":"VLOOKUP(C358,'[1]Raw Kolkata Stop level Route'!G:I,3,0)","v":"National insurance - kadam pukur more bus stop"},null,null,"WB15E2672",3]
[null,null,"Sector5_Serampore_1002",1,{"$f":"VLOOKUP(C359,'[1]Raw Kolkata Stop level Route'!G:I,3,0)","v":"Serampore Bus Stop"},null,null,"WB25M7709",3]
[null,null,"Serampore_Sector5_1002",4,{"$f":"VLOOKUP(C360,'[1]Raw Kolkata Stop level Route'!G:I,3,0)","v":"Wipro"},null,null,"WB19Q4410",3]
[null,null,"Sonarpur_NewTown_5053",1,{"$f":"VLOOKUP(C361,'[1]Raw Kolkata Stop level Route'!G:I,3,0)","v":"Mani Casa Government Office"},null,null,"WB25M1706",3]
[null,"Barrackpur Total",null,22,null,null,null,"WB07V7495",3]
[null,"BudgeBudge","BudgeBudge_NewTown_5027",1,{"$f":"VLOOKUP(C363,'[1]Raw Kolkata Stop level Route'!G:I,3,0)","v":"Mani Casa Government office"},null,null,"WB25M1392",3]
[null,null,"BudgeBudge_NewTown_5031",1,{"$f":"VLOOKUP(C364,'[1]Raw Kolkata Stop level Route'!G:I,3,0)","v":"Tata Consultancy Service Business services Company"},null,null,"WB19Q4417",3]
[null,null,"GreenField_NewTown_1003",1,{"$f":"VLOOKUP(C365,'[1]Raw Kolkata Stop level Route'!G:I,3,0)","v":"Ecospace Opp. Entry Gate"},null,null,"WB25P3753",3]
[null,null,"New-town_Joka_1002",2,{"$f":"VLOOKUP(C366,'[1]Raw Kolkata Stop level Route'!G:I,3,0)","v":"Joke Diamond Club"},null,null,"WB19Q7950",3]
[null,null,"NewTown_BudgeBudge_1001",1,{"$f":"VLOOKUP(C367,'[1]Raw Kolkata Stop level Route'!G:I,3,0)","v":"ESI Hospital - Budge Budge"},null,null,"WB19Q7739",3]
[null,null,"NewTown_Tollygunge (METRO) _1002",1,{"$f":"VLOOKUP(C368,'[1]Raw Kolkata Stop level Route'!G:I,3,0)","v":"Mahanayak Uttam kumar"},null,null,"WB19Q7160",3]
[null,"BudgeBudge Total",null,7,null,null,null,"WB19Q7721",3]
[null,"CentralKolkata","CentralKolkata_NewTown_5035",1,{"$f":"VLOOKUP(C370,'[1]Raw Kolkata Stop level Route'!G:I,3,0)","v":"Deep Garage Car repair and service Repair shop"},null,null,"WB19P9223",3]
[null,null,"Dunlop_Sector5_1001",1,{"$f":"VLOOKUP(C371,'[1]Raw Kolkata Stop level Route'!G:I,3,0)","v":"Wipro"},null,null,"WB25M8646",3]
[null,null,"Hatisala_Ranikuthi_1006",1,{"$f":"VLOOKUP(C372,'[1]Raw Kolkata Stop level Route'!G:I,3,0)","v":"Madhumita Restaurant-Ranikuthi"},null,null,"WB19Q1130",3]
[null,null,"NewTown_CentralKolkata_5034",4,{"$f":"VLOOKUP(C373,'[1]Raw Kolkata Stop level Route'!G:I,3,0)","v":"custom house bus stop"},null,null,"WB19Q7725",3]
[null,null,"NewTown_Howrah_5038",1,{"$f":"VLOOKUP(C374,'[1]Raw Kolkata Stop level Route'!G:I,3,0)","v":"HDFC Bank"},null,null,"WB07V1390",3]
[null,null,"Tollygunge(PrinceAnwar)_NewTown_1004",2,{"$f":"VLOOKUP(C375,'[1]Raw Kolkata Stop level Route'!G:I,3,0)","v":"Ecospace Opp. Entry Gate"},null,null,"WB25M7704",3]
[null,"CentralKolkata Total",null,10,null,null,null,"WB19M8400",3]
[null,"Howrah","CentralKolkata_NewTown_5035",1,{"$f":"VLOOKUP(C377,'[1]Raw Kolkata Stop level Route'!G:I,3,0)","v":"Deep Garage Car repair and service Repair shop"},null,null,"WB19Q5209",3]
[null,null,"NewTown_Howrah_5038",1,{"$f":"VLOOKUP(C378,'[1]Raw Kolkata Stop level Route'!G:I,3,0)","v":"HDFC Bank"},null,null,"WB25M8790",3]
[null,null,"NewTown_Howrah_5040",2,{"$f":"VLOOKUP(C379,'[1]Raw Kolkata Stop level Route'!G:I,3,0)","v":"Koley cycle co. scooter showroom shop"},null,null,"WB25M8691",3]
[null,null,"NewTown_Howrah_5042",1,{"$f":"VLOOKUP(C380,'[1]Raw Kolkata Stop level Route'!G:I,3,0)","v":"Xpress Money Currency exchange"},null,null,"WB19Q9006",3]
[null,null,"NewTown_Howrah_5044",3,{"$f":"VLOOKUP(C381,'[1]Raw Kolkata Stop level Route'!G:I,3,0)","v":"Near By SMART TEA SHOP"},null,null,"WB25M7701",3]
[null,null,"NewTown_Sonarpur_5058",1,{"$f":"VLOOKUP(C382,'[1]Raw Kolkata Stop level Route'!G:I,3,0)","v":"Opposite to Bansdroni busstop"},null,null,"WB11J9093",3]
[null,"Howrah Total",null,9,null,null,null,"WB19Q0648",3]
[null,"Sonarpur","Bally_NewTown_5019",1,{"$f":"VLOOKUP(C384,'[1]Raw Kolkata Stop level Route'!G:I,3,0)","v":"Tata Consultancy Service Business services Company"},null,null,"WB19P6454",3]
[null,null,"Barasat_SectorV_5023",1,{"$f":"VLOOKUP(C385,'[1]Raw Kolkata Stop level Route'!G:I,3,0)","v":"College More Opp. Hyundai Showroom"},null,null,"WB25M7711",3]
[null,null,"NewTown_Barrackpur_5004",1,{"$f":"VLOOKUP(C386,'[1]Raw Kolkata Stop level Route'!G:I,3,0)","v":"Motorola Showroom Shop"},null,null,"WB25P3348",3]
[null,null,"NewTown_Bauripur_1001",1,{"$f":"VLOOKUP(C387,'[1]Raw Kolkata Stop level Route'!G:I,3,0)","v":"Opposite Rabindra Bhavan"},null,null,"WB19Q7731",3]
[null,null,"NewTown_BudgeBudge_5028",1,{"$f":"VLOOKUP(C388,'[1]Raw Kolkata Stop level Route'!G:I,3,0)","v":"Vivekananda Mission school Bus stop"},null,null,"WB19M0991",3]
[null,null,"NewTown_Sonarpur_1001",1,{"$f":"VLOOKUP(C389,'[1]Raw Kolkata Stop level Route'!G:I,3,0)","v":"Sonarpur Sadharan Sammilani"},null,null,"WB25M7714",3]
[null,null,"NewTown_Sonarpur_5054",3,{"$f":"VLOOKUP(C390,'[1]Raw Kolkata Stop level Route'!G:I,3,0)","v":"Haraharitala Bus stop"},null,null,"WB19M2940",3]
[null,null,"NewTown_Sonarpur_5058",6,{"$f":"VLOOKUP(C391,'[1]Raw Kolkata Stop level Route'!G:I,3,0)","v":"Opposite to Bansdroni busstop"},null,null,"WB19Q7720",3]
[null,null,"NewTown_Tollygunge (METRO) _1002",2,{"$f":"VLOOKUP(C392,'[1]Raw Kolkata Stop level Route'!G:I,3,0)","v":"Mahanayak Uttam kumar"},null,null,"WB25P2360",3]
[null,null,"Ranikuthi_NewTown_1001",4,{"$f":"VLOOKUP(C393,'[1]Raw Kolkata Stop level Route'!G:I,3,0)","v":"National insurance - kadam pukur more bus stop"},null,null,"WB19Q7744",3]
[null,null,"Sonarpur_NewTown_5049",1,{"$f":"VLOOKUP(C394,'[1]Raw Kolkata Stop level Route'!G:I,3,0)","v":"Aliah University Bus Stop"},null,null,"WB07V7490",3]
[null,null,"Sonarpur_NewTown_5053",5,{"$f":"VLOOKUP(C395,'[1]Raw Kolkata Stop level Route'!G:I,3,0)","v":"Mani Casa Government Office"},null,null,"WB19Q7736",3]
[null,null,"Sonarpur_NewTown_5057",2,{"$f":"VLOOKUP(C396,'[1]Raw Kolkata Stop level Route'!G:I,3,0)","v":"Mani Casa Government Office"},null,null,"WB19Q8400",3]
[null,null,"Tollygunge (METRO)_NewTown_1002",1,{"$f":"VLOOKUP(C397,'[1]Raw Kolkata Stop level Route'!G:I,3,0)","v":"Kadampukur More Bus Stop"},null,null,"WB23J1323",3]
[null,null,"Tollygunge(PrinceAnwar)_NewTown_1004",1,{"$f":"VLOOKUP(C398,'[1]Raw Kolkata Stop level Route'!G:I,3,0)","v":"Ecospace Opp. Entry Gate"},null,null,"WB19M2725",3]
[null,"Sonarpur Total",null,31,null,null,null,"WB23H8711",3]
["NewTown Total",null,null,97,null,null,null,"WB25M8718",3]
["Parnasree","New Town","BudgeBudge_NewTown_5031",1,{"$f":"VLOOKUP(C401,'[1]Raw Kolkata Stop level Route'!G:I,3,0)","v":"Tata Consultancy Service Business services Company"},null,null,"WB23H1888",3]
[null,null,"GreenField_NewTown_1003",1,{"$f":"VLOOKUP(C402,'[1]Raw Kolkata Stop level Route'!G:I,3,0)","v":"Ecospace Opp. Entry Gate"},null,null,"WB19P8887",3]
[null,null,"NewTown_GreenField_1003",1,{"$f":"VLOOKUP(C403,'[1]Raw Kolkata Stop level Route'!G:I,3,0)","v":"Greenfield City"},null,null,"WB23J1339",3]
[null,null,"NewTown_Howrah_1006",1,{"$f":"VLOOKUP(C404,'[1]Raw Kolkata Stop level Route'!G:I,3,0)","v":"Howrah Railway Museum"},null,null,"WB11H8167",3]
[null,null,"NewTown_Ranikuthi_1001",1,{"$f":"VLOOKUP(C405,'[1]Raw Kolkata Stop level Route'!G:I,3,0)","v":"Madhumita Restaurant-Ranikuthi"},null,null,"WB19Q9913",3]
[null,null,"NewTown-Parnasree-1001",6,{"$f":"VLOOKUP(C406,'[1]Raw Kolkata Stop level Route'!G:I,3,0)","v":"Parnasree Lake"},null,null,"WB19Q2304",3]
[null,null,"Parnasree-NewTown-1001",11,{"$f":"VLOOKUP(C407,'[1]Raw Kolkata Stop level Route'!G:I,3,0)","v":"National insurance-kadam pukur more bus stop"},null,null,"WB23H8735",3]
[null,"New Town Total",null,22,null,null,null,"WB19Q0038",3]
["Parnasree Total",null,null,22,null,null,null,"WB25P3366",3]
["Ranikuthi","Hatisala","Hatisala_Ranikuthi_1006",1,{"$f":"VLOOKUP(C410,'[1]Raw Kolkata Stop level Route'!G:I,3,0)","v":"Madhumita Restaurant-Ranikuthi"},null,null,"WB19M2733",3]
[null,null,"Tollygunge (METRO)_NewTown_1002",1,{"$f":"VLOOKUP(C411,'[1]Raw Kolkata Stop level Route'!G:I,3,0)","v":"Kadampukur More Bus Stop"},null,null,"WB23H8738",3]
[null,"Hatisala Total",null,2,null,null,null,"WB19Q4448",3]
[null,"New Town","Bally_NewTown_5017",1,{"$f":"VLOOKUP(C413,'[1]Raw Kolkata Stop level Route'!G:I,3,0)","v":"opposite to Narayana School"},null,null,"WB19M2502",3]
[null,null,"Barasat_Hatisala_5021",1,{"$f":"VLOOKUP(C414,'[1]Raw Kolkata Stop level Route'!G:I,3,0)","v":"opposite to Infosys Limited"},null,null,"WB19L9672",3]
[null,null,"Barrackpore_Sector5_1001",1,{"$f":"VLOOKUP(C415,'[1]Raw Kolkata Stop level Route'!G:I,3,0)","v":"Wipro"},null,null,"WB19Q9800",3]
[null,null,"CentralKolkata_NewTown_5035",1,{"$f":"VLOOKUP(C416,'[1]Raw Kolkata Stop level Route'!G:I,3,0)","v":"Deep Garage Car repair and service Repair shop"},null,null,"WB19Q7784",3]
[null,null,"NewTown_Howrah_5040",1,{"$f":"VLOOKUP(C417,'[1]Raw Kolkata Stop level Route'!G:I,3,0)","v":"Koley cycle co. scooter showroom shop"},null,null,"WB19R0847",3]
[null,null,"NewTown_Jadavpur_1005",1,{"$f":"VLOOKUP(C418,'[1]Raw Kolkata Stop level Route'!G:I,3,0)","v":"Jadavpur Bus Stop"},null,null,"WB25P4403",3]
[null,null,"NewTown_Ranikuthi_1001",2,{"$f":"VLOOKUP(C419,'[1]Raw Kolkata Stop level Route'!G:I,3,0)","v":"Madhumita Restaurant-Ranikuthi"},null,null,"WB17C1333",3]
[null,null,"NewTown_Sonarpur_1001",1,{"$f":"VLOOKUP(C420,'[1]Raw Kolkata Stop level Route'!G:I,3,0)","v":"Sonarpur Sadharan Sammilani"},null,null,"WB19Q4136",3]
[null,null,"NewTown_Tollygunge (METRO) _1002",5,{"$f":"VLOOKUP(C421,'[1]Raw Kolkata Stop level Route'!G:I,3,0)","v":"Mahanayak Uttam kumar"},null,null,"WB25M4453",3]
[null,null,"NewTown_Tollygunge(PrinceAnwar)_1004",1,{"$f":"VLOOKUP(C422,'[1]Raw Kolkata Stop level Route'!G:I,3,0)","v":"Mahanayak Uttam kumar"},null,null,"WB19Q5983",3]
[null,null,"Parnasree-NewTown-1001",1,{"$f":"VLOOKUP(C423,'[1]Raw Kolkata Stop level Route'!G:I,3,0)","v":"National insurance-kadam pukur more bus stop"},null,null,"WB19M2523",3]
[null,null,"Ranikuthi_NewTown_1001",17,{"$f":"VLOOKUP(C424,'[1]Raw Kolkata Stop level Route'!G:I,3,0)","v":"National insurance - kadam pukur more bus stop"},null,null,"WB25P3305",4]
[null,null,"Sector5_Bally_1003",2,{"$f":"VLOOKUP(C425,'[1]Raw Kolkata Stop level Route'!G:I,3,0)","v":"Bally Bus Stop"},null,null,"WB17C2333",4]
[null,null,"Sector5_Serampore_1002",1,{"$f":"VLOOKUP(C426,'[1]Raw Kolkata Stop level Route'!G:I,3,0)","v":"Serampore Bus Stop"},null,null,"WB19Q3120",4]
[null,null,"Sonarpur_NewTown_1001",1,{"$f":"VLOOKUP(C427,'[1]Raw Kolkata Stop level Route'!G:I,3,0)","v":"Ecospace Opp. Entry Gate"},null,null,"WB19Q6795",4]
[null,null,"Thakurpukur_NewTown_1001",1,{"$f":"VLOOKUP(C428,'[1]Raw Kolkata Stop level Route'!G:I,3,0)","v":"National insurance-kadam pukur more bus stop"},null,null,"Grand Total",1077]
[null,null,"Tollygunge (METRO)_NewTown_1002",2,{"$f":"VLOOKUP(C429,'[1]Raw Kolkata Stop level Route'!G:I,3,0)","v":"Kadampukur More Bus Stop"}]
[null,"New Town Total",null,40]
["Ranikuthi Total",null,null,42]
["Sector V","Bally","Bally_Hastisala_1007",1,{"$f":"VLOOKUP(C432,'[1]Raw Kolkata Stop level Route'!G:I,3,0)","v":"Infosysu00a0Businessu00a0Park (New Town)"}]
[null,null,"Bally_NewTown_5019",1,{"$f":"VLOOKUP(C433,'[1]Raw Kolkata Stop level Route'!G:I,3,0)","v":"Tata Consultancy Service Business services Company"}]
[null,null,"Bally_Sector5_1003",5,{"$f":"VLOOKUP(C434,'[1]Raw Kolkata Stop level Route'!G:I,3,0)","v":"Wipro"}]
[null,null,"Barrackpore_Sector5_1001",1,{"$f":"VLOOKUP(C435,'[1]Raw Kolkata Stop level Route'!G:I,3,0)","v":"Wipro"}]
[null,null,"Barrackpur_NewTown_5009",1,{"$f":"VLOOKUP(C436,'[1]Raw Kolkata Stop level Route'!G:I,3,0)","v":"Opposite to NBCC Shopping Centre Shopping center"}]
[null,null,"Dunlop_Sector5_1001",1,{"$f":"VLOOKUP(C437,'[1]Raw Kolkata Stop level Route'!G:I,3,0)","v":"Wipro"}]
[null,null,"Hastisala_Bally_1007",1,{"$f":"VLOOKUP(C438,'[1]Raw Kolkata Stop level Route'!G:I,3,0)","v":"Bally Bus Stop"}]
[null,null,"NewTown_Sonarpur_5058",1,{"$f":"VLOOKUP(C439,'[1]Raw Kolkata Stop level Route'!G:I,3,0)","v":"Opposite to Bansdroni busstop"}]
[null,null,"Ranikuthi_NewTown_1001",1,{"$f":"VLOOKUP(C440,'[1]Raw Kolkata Stop level Route'!G:I,3,0)","v":"National insurance - kadam pukur more bus stop"}]
[null,null,"Sector5_Bally_1003",11,{"$f":"VLOOKUP(C441,'[1]Raw Kolkata Stop level Route'!G:I,3,0)","v":"Bally Bus Stop"}]
[null,null,"Sector5_Barrackpore_1001",1,{"$f":"VLOOKUP(C442,'[1]Raw Kolkata Stop level Route'!G:I,3,0)","v":"Ghosh Para Road"}]
[null,"Bally Total",null,25]
[null,"Barasat","Bally_Sector5_1003",1,{"$f":"VLOOKUP(C444,'[1]Raw Kolkata Stop level Route'!G:I,3,0)","v":"Wipro"}]
[null,null,"Barasat_Sector5_1001",11,{"$f":"VLOOKUP(C445,'[1]Raw Kolkata Stop level Route'!G:I,3,0)","v":"Wipro"}]
[null,null,"Barrackpore_Sector5_1001",1,{"$f":"VLOOKUP(C446,'[1]Raw Kolkata Stop level Route'!G:I,3,0)","v":"Wipro"}]
[null,null,"Bauripur_NewTown_1001",1,{"$f":"VLOOKUP(C447,'[1]Raw Kolkata Stop level Route'!G:I,3,0)","v":"Ecospace Opp. Entry Gate"}]
[null,null,"Hatisala_Barasat_5022",2,{"$f":"VLOOKUP(C448,'[1]Raw Kolkata Stop level Route'!G:I,3,0)","v":"Renault Car dealer, Automotive dealer"}]
[null,null,"Sector5_Barasat_1001",5,{"$f":"VLOOKUP(C449,'[1]Raw Kolkata Stop level Route'!G:I,3,0)","v":"Opp. BigBazar-Chapadali More"}]
[null,null,"Sector5_Serampore_1002",1,{"$f":"VLOOKUP(C450,'[1]Raw Kolkata Stop level Route'!G:I,3,0)","v":"Serampore Bus Stop"}]
[null,null,"SectorV_Barasat_5024",1,{"$f":"VLOOKUP(C451,'[1]Raw Kolkata Stop level Route'!G:I,3,0)","v":"Opposite to Netaji Nagar 1 No Railway Gate Bus stop"}]
[null,null,"Tollygunge(PrinceAnwar)_NewTown_1004",1,{"$f":"VLOOKUP(C452,'[1]Raw Kolkata Stop level Route'!G:I,3,0)","v":"Ecospace Opp. Entry Gate"}]
[null,"Barasat Total",null,24]
[null,"Barrackpore","Bally_Sector5_1003",1,{"$f":"VLOOKUP(C454,'[1]Raw Kolkata Stop level Route'!G:I,3,0)","v":"Wipro"}]
[null,null,"Barasat_Sector5_1001",1,{"$f":"VLOOKUP(C455,'[1]Raw Kolkata Stop level Route'!G:I,3,0)","v":"Wipro"}]
[null,null,"Barrackpore_Sector5_1001",9,{"$f":"VLOOKUP(C456,'[1]Raw Kolkata Stop level Route'!G:I,3,0)","v":"Wipro"}]
[null,null,"Barrackpur_SectorV_5015",1,{"$f":"VLOOKUP(C457,'[1]Raw Kolkata Stop level Route'!G:I,3,0)","v":"College More First Gate"}]
[null,null,"NewTown_Barrackpur_5008",3,{"$f":"VLOOKUP(C458,'[1]Raw Kolkata Stop level Route'!G:I,3,0)","v":"Chiriya More (Hindu School Ground)"}]
[null,null,"NewTown_Bauripur_1001",1,{"$f":"VLOOKUP(C459,'[1]Raw Kolkata Stop level Route'!G:I,3,0)","v":"Opposite Rabindra Bhavan"}]
[null,null,"Sector5_Barrackpore_1001",13,{"$f":"VLOOKUP(C460,'[1]Raw Kolkata Stop level Route'!G:I,3,0)","v":"Ghosh Para Road"}]
[null,null,"Sonarpur_NewTown_1001",1,{"$f":"VLOOKUP(C461,'[1]Raw Kolkata Stop level Route'!G:I,3,0)","v":"Ecospace Opp. Entry Gate"}]
[null,"Barrackpore Total",null,30]
[null,"Dunlop","Bally_NewTown_5017",1,{"$f":"VLOOKUP(C463,'[1]Raw Kolkata Stop level Route'!G:I,3,0)","v":"opposite to Narayana School"}]
[null,null,"Bally_Sector5_1003",1,{"$f":"VLOOKUP(C464,'[1]Raw Kolkata Stop level Route'!G:I,3,0)","v":"Wipro"}]
[null,null,"Dunlop_Sector5_1001",3,{"$f":"VLOOKUP(C465,'[1]Raw Kolkata Stop level Route'!G:I,3,0)","v":"Wipro"}]
[null,null,"Joka_New-Town_1002",1,{"$f":"VLOOKUP(C466,'[1]Raw Kolkata Stop level Route'!G:I,3,0)","v":"Kadam Pukur More Bus Stop"}]
[null,null,"NewTown_Bally_5018",1,{"$f":"VLOOKUP(C467,'[1]Raw Kolkata Stop level Route'!G:I,3,0)","v":"DTDC Courier service"}]
[null,null,"NewTown_Thakurpukur_1001",1,{"$f":"VLOOKUP(C468,'[1]Raw Kolkata Stop level Route'!G:I,3,0)","v":"Genexx Valley"}]
[null,null,"Sector5_Barrackpore_1001",1,{"$f":"VLOOKUP(C469,'[1]Raw Kolkata Stop level Route'!G:I,3,0)","v":"Ghosh Para Road"}]
[null,null,"Sector5_Dunlop_1001",3,{"$f":"VLOOKUP(C470,'[1]Raw Kolkata Stop level Route'!G:I,3,0)","v":"Dunlop United Bank"}]
[null,"Dunlop Total",null,12]
[null,"Serampore","Barrackpur_NewTown_5011",1,{"$f":"VLOOKUP(C472,'[1]Raw Kolkata Stop level Route'!G:I,3,0)","v":"Kara's Tea Stall Café"}]
[null,null,"NewTown_Sonarpur_5058",1,{"$f":"VLOOKUP(C473,'[1]Raw Kolkata Stop level Route'!G:I,3,0)","v":"Opposite to Bansdroni busstop"}]
[null,null,"Ranikuthi_NewTown_1001",3,{"$f":"VLOOKUP(C474,'[1]Raw Kolkata Stop level Route'!G:I,3,0)","v":"National insurance - kadam pukur more bus stop"}]
[null,null,"Sector5_Bally_1003",1,{"$f":"VLOOKUP(C475,'[1]Raw Kolkata Stop level Route'!G:I,3,0)","v":"Bally Bus Stop"}]
[null,null,"Sector5_Serampore_1002",10,{"$f":"VLOOKUP(C476,'[1]Raw Kolkata Stop level Route'!G:I,3,0)","v":"Serampore Bus Stop"}]
[null,null,"Serampore_Sector5_1002",7,{"$f":"VLOOKUP(C477,'[1]Raw Kolkata Stop level Route'!G:I,3,0)","v":"Wipro"}]
[null,"Serampore Total",null,23]
["Sector V Total",null,null,110]
["SectorV","Barasat","Bally_Sector5_1003",1,{"$f":"VLOOKUP(C480,'[1]Raw Kolkata Stop level Route'!G:I,3,0)","v":"Wipro"}]
[null,null,"Barasat_Sector5_1001",1,{"$f":"VLOOKUP(C481,'[1]Raw Kolkata Stop level Route'!G:I,3,0)","v":"Wipro"}]
[null,null,"Barasat_SectorV_5023",6,{"$f":"VLOOKUP(C482,'[1]Raw Kolkata Stop level Route'!G:I,3,0)","v":"College More Opp. Hyundai Showroom"}]
[null,null,"Barrackpore_Sector5_1001",1,{"$f":"VLOOKUP(C483,'[1]Raw Kolkata Stop level Route'!G:I,3,0)","v":"Wipro"}]
[null,null,"Sector5_Barasat_1001",1,{"$f":"VLOOKUP(C484,'[1]Raw Kolkata Stop level Route'!G:I,3,0)","v":"Opp. BigBazar-Chapadali More"}]
[null,null,"SectorV_Barasat_5024",1,{"$f":"VLOOKUP(C485,'[1]Raw Kolkata Stop level Route'!G:I,3,0)","v":"Opposite to Netaji Nagar 1 No Railway Gate Bus stop"}]
[null,"Barasat Total",null,11]
[null,"Barrackpur","Barrackpore_Sector5_1001",1,{"$f":"VLOOKUP(C487,'[1]Raw Kolkata Stop level Route'!G:I,3,0)","v":"Wipro"}]
[null,null,"Hatisala_Sonarpur_5046",1,{"$f":"VLOOKUP(C488,'[1]Raw Kolkata Stop level Route'!G:I,3,0)","v":"Garia 5no. bus terminus"}]
[null,null,"NewTown_Howrah_5040",1,{"$f":"VLOOKUP(C489,'[1]Raw Kolkata Stop level Route'!G:I,3,0)","v":"Koley cycle co. scooter showroom shop"}]
[null,null,"SectorV_Barrackpur_5016",1,{"$f":"VLOOKUP(C490,'[1]Raw Kolkata Stop level Route'!G:I,3,0)","v":"Barrackpore More Bus Stop"}]
[null,null,"Sonarpur_SectorV_5051",1,{"$f":"VLOOKUP(C491,'[1]Raw Kolkata Stop level Route'!G:I,3,0)","v":"College More First Gate"}]
[null,"Barrackpur Total",null,5]
[null,"Sonarpur","Bally_NewTown_5019",1,{"$f":"VLOOKUP(C493,'[1]Raw Kolkata Stop level Route'!G:I,3,0)","v":"Tata Consultancy Service Business services Company"}]
[null,null,"Barasat_Hatisala_5021",1,{"$f":"VLOOKUP(C494,'[1]Raw Kolkata Stop level Route'!G:I,3,0)","v":"opposite to Infosys Limited"}]
[null,null,"Ranikuthi_NewTown_1001",1,{"$f":"VLOOKUP(C495,'[1]Raw Kolkata Stop level Route'!G:I,3,0)","v":"National insurance - kadam pukur more bus stop"}]
[null,null,"SectorV_Sonarpur_5052",1,{"$f":"VLOOKUP(C496,'[1]Raw Kolkata Stop level Route'!G:I,3,0)","v":"Roy Store"}]
[null,"Sonarpur Total",null,4]
["SectorV Total",null,null,20]
["Serampore","Hatisala","Bally_Sector5_1003",1,{"$f":"VLOOKUP(C499,'[1]Raw Kolkata Stop level Route'!G:I,3,0)","v":"Wipro"}]
[null,null,"Hatisala_Serampore_1008",1,{"$f":"VLOOKUP(C500,'[1]Raw Kolkata Stop level Route'!G:I,3,0)","v":"Serampore Bus Stop"}]
[null,null,"Serampore_Hatisala_1008",1,{"$f":"VLOOKUP(C501,'[1]Raw Kolkata Stop level Route'!G:I,3,0)","v":"Infosysu00a0Businessu00a0Park (New Town)"}]
[null,null,"Serampore_Sector5_1002",1,{"$f":"VLOOKUP(C502,'[1]Raw Kolkata Stop level Route'!G:I,3,0)","v":"Wipro"}]
[null,"Hatisala Total",null,4]
[null,"Sector V","Barrackpore_Sector5_1001",1,{"$f":"VLOOKUP(C504,'[1]Raw Kolkata Stop level Route'!G:I,3,0)","v":"Wipro"}]
[null,null,"Barrackpur_NewTown_5011",1,{"$f":"VLOOKUP(C505,'[1]Raw Kolkata Stop level Route'!G:I,3,0)","v":"Kara's Tea Stall Café"}]
[null,null,"Hatisala_Serampore_1008",1,{"$f":"VLOOKUP(C506,'[1]Raw Kolkata Stop level Route'!G:I,3,0)","v":"Serampore Bus Stop"}]
[null,null,"NewTown_Barrackpur_5004",1,{"$f":"VLOOKUP(C507,'[1]Raw Kolkata Stop level Route'!G:I,3,0)","v":"Motorola Showroom Shop"}]
[null,null,"NewTown_Barrackpur_5008",1,{"$f":"VLOOKUP(C508,'[1]Raw Kolkata Stop level Route'!G:I,3,0)","v":"Chiriya More (Hindu School Ground)"}]
[null,null,"NewTown_Sonarpur_5058",1,{"$f":"VLOOKUP(C509,'[1]Raw Kolkata Stop level Route'!G:I,3,0)","v":"Opposite to Bansdroni busstop"}]
[null,null,"Ranikuthi_NewTown_1001",3,{"$f":"VLOOKUP(C510,'[1]Raw Kolkata Stop level Route'!G:I,3,0)","v":"National insurance - kadam pukur more bus stop"}]
[null,null,"Sector5_Bally_1003",1,{"$f":"VLOOKUP(C511,'[1]Raw Kolkata Stop level Route'!G:I,3,0)","v":"Bally Bus Stop"}]
[null,null,"Sector5_Serampore_1002",8,{"$f":"VLOOKUP(C512,'[1]Raw Kolkata Stop level Route'!G:I,3,0)","v":"Serampore Bus Stop"}]
[null,null,"Serampore_Sector5_1002",8,{"$f":"VLOOKUP(C513,'[1]Raw Kolkata Stop level Route'!G:I,3,0)","v":"Wipro"}]
[null,"Sector V Total",null,26]
["Serampore Total",null,null,30]
["Sonarpur","Hatisala","Bally_NewTown_5019",1,{"$f":"VLOOKUP(C516,'[1]Raw Kolkata Stop level Route'!G:I,3,0)","v":"Tata Consultancy Service Business services Company"}]
[null,null,"NewTown_Sonarpur_5058",2,{"$f":"VLOOKUP(C517,'[1]Raw Kolkata Stop level Route'!G:I,3,0)","v":"Opposite to Bansdroni busstop"}]
[null,"Hatisala Total",null,3]
[null,"New Town","Bally_NewTown_5017",1,{"$f":"VLOOKUP(C519,'[1]Raw Kolkata Stop level Route'!G:I,3,0)","v":"opposite to Narayana School"}]
[null,null,"Bauripur_NewTown_1001",1,{"$f":"VLOOKUP(C520,'[1]Raw Kolkata Stop level Route'!G:I,3,0)","v":"Ecospace Opp. Entry Gate"}]
[null,null,"BudgeBudge_NewTown_5027",1,{"$f":"VLOOKUP(C521,'[1]Raw Kolkata Stop level Route'!G:I,3,0)","v":"Mani Casa Government office"}]
[null,null,"CentralKolkata_NewTown_5035",1,{"$f":"VLOOKUP(C522,'[1]Raw Kolkata Stop level Route'!G:I,3,0)","v":"Deep Garage Car repair and service Repair shop"}]
[null,null,"Howrah_NewTown_5043",1,{"$f":"VLOOKUP(C523,'[1]Raw Kolkata Stop level Route'!G:I,3,0)","v":"Kara's Tea Stall Café"}]
[null,null,"NewTown_Barrackpur_5004",1,{"$f":"VLOOKUP(C524,'[1]Raw Kolkata Stop level Route'!G:I,3,0)","v":"Motorola Showroom Shop"}]
[null,null,"NewTown_Bauripur_1001",1,{"$f":"VLOOKUP(C525,'[1]Raw Kolkata Stop level Route'!G:I,3,0)","v":"Opposite Rabindra Bhavan"}]
[null,null,"NewTown_CentralKolkata_5034",1,{"$f":"VLOOKUP(C526,'[1]Raw Kolkata Stop level Route'!G:I,3,0)","v":"custom house bus stop"}]
[null,null,"NewTown_Jadavpur_1005",1,{"$f":"VLOOKUP(C527,'[1]Raw Kolkata Stop level Route'!G:I,3,0)","v":"Jadavpur Bus Stop"}]
[null,null,"NewTown_Sonarpur_1001",6,{"$f":"VLOOKUP(C528,'[1]Raw Kolkata Stop level Route'!G:I,3,0)","v":"Sonarpur Sadharan Sammilani"}]
[null,null,"NewTown_Sonarpur_5054",1,{"$f":"VLOOKUP(C529,'[1]Raw Kolkata Stop level Route'!G:I,3,0)","v":"Haraharitala Bus stop"}]
[null,null,"Sector5_Barrackpore_1001",1,{"$f":"VLOOKUP(C530,'[1]Raw Kolkata Stop level Route'!G:I,3,0)","v":"Ghosh Para Road"}]
[null,null,"Sector5_Serampore_1002",1,{"$f":"VLOOKUP(C531,'[1]Raw Kolkata Stop level Route'!G:I,3,0)","v":"Serampore Bus Stop"}]
[null,null,"SectorV_Barrackpur_5016",1,{"$f":"VLOOKUP(C532,'[1]Raw Kolkata Stop level Route'!G:I,3,0)","v":"Barrackpore More Bus Stop"}]
[null,null,"Sonarpur_NewTown_1001",12,{"$f":"VLOOKUP(C533,'[1]Raw Kolkata Stop level Route'!G:I,3,0)","v":"Ecospace Opp. Entry Gate"}]
[null,null,"Tollygunge(PrinceAnwar)_NewTown_1004",1,{"$f":"VLOOKUP(C534,'[1]Raw Kolkata Stop level Route'!G:I,3,0)","v":"Ecospace Opp. Entry Gate"}]
[null,"New Town Total",null,32]
[null,"NewTown","BudgeBudge_NewTown_5027",1,{"$f":"VLOOKUP(C536,'[1]Raw Kolkata Stop level Route'!G:I,3,0)","v":"Mani Casa Government office"}]
[null,null,"Joka_New-Town_1002",1,{"$f":"VLOOKUP(C537,'[1]Raw Kolkata Stop level Route'!G:I,3,0)","v":"Kadam Pukur More Bus Stop"}]
[null,null,"New-town_Joka_1002",1,{"$f":"VLOOKUP(C538,'[1]Raw Kolkata Stop level Route'!G:I,3,0)","v":"Joke Diamond Club"}]
[null,null,"NewTown_Bally_5020",1,{"$f":"VLOOKUP(C539,'[1]Raw Kolkata Stop level Route'!G:I,3,0)","v":"bamon danga bus stop"}]
[null,null,"NewTown_Ranikuthi_1001",1,{"$f":"VLOOKUP(C540,'[1]Raw Kolkata Stop level Route'!G:I,3,0)","v":"Madhumita Restaurant-Ranikuthi"}]
[null,null,"NewTown_Sonarpur_1001",2,{"$f":"VLOOKUP(C541,'[1]Raw Kolkata Stop level Route'!G:I,3,0)","v":"Sonarpur Sadharan Sammilani"}]
[null,null,"NewTown_Sonarpur_5050",1,{"$f":"VLOOKUP(C542,'[1]Raw Kolkata Stop level Route'!G:I,3,0)","v":"Thakurpukur Co-operative Housing Society"}]
[null,null,"NewTown_Sonarpur_5054",4,{"$f":"VLOOKUP(C543,'[1]Raw Kolkata Stop level Route'!G:I,3,0)","v":"Haraharitala Bus stop"}]
[null,null,"NewTown_Sonarpur_5058",1,{"$f":"VLOOKUP(C544,'[1]Raw Kolkata Stop level Route'!G:I,3,0)","v":"Opposite to Bansdroni busstop"}]
[null,null,"NewTown_Tollygunge(PrinceAnwar)_1004",2,{"$f":"VLOOKUP(C545,'[1]Raw Kolkata Stop level Route'!G:I,3,0)","v":"Mahanayak Uttam kumar"}]
[null,null,"Parnasree-NewTown-1001",1,{"$f":"VLOOKUP(C546,'[1]Raw Kolkata Stop level Route'!G:I,3,0)","v":"National insurance-kadam pukur more bus stop"}]
[null,null,"Ranikuthi_NewTown_1001",2,{"$f":"VLOOKUP(C547,'[1]Raw Kolkata Stop level Route'!G:I,3,0)","v":"National insurance - kadam pukur more bus stop"}]
[null,null,"Sector5_Bally_1003",1,{"$f":"VLOOKUP(C548,'[1]Raw Kolkata Stop level Route'!G:I,3,0)","v":"Bally Bus Stop"}]
[null,null,"Sector5_Barrackpore_1001",1,{"$f":"VLOOKUP(C549,'[1]Raw Kolkata Stop level Route'!G:I,3,0)","v":"Ghosh Para Road"}]
[null,null,"Sonarpur_NewTown_5049",1,{"$f":"VLOOKUP(C550,'[1]Raw Kolkata Stop level Route'!G:I,3,0)","v":"Aliah University Bus Stop"}]
[null,null,"Sonarpur_NewTown_5053",6,{"$f":"VLOOKUP(C551,'[1]Raw Kolkata Stop level Route'!G:I,3,0)","v":"Mani Casa Government Office"}]
[null,null,"Sonarpur_NewTown_5055",3,{"$f":"VLOOKUP(C552,'[1]Raw Kolkata Stop level Route'!G:I,3,0)","v":"Kara's Tea Stall Café"}]
[null,null,"Sonarpur_NewTown_5057",2,{"$f":"VLOOKUP(C553,'[1]Raw Kolkata Stop level Route'!G:I,3,0)","v":"Mani Casa Government Office"}]
[null,"NewTown Total",null,32]
[null,"Sector V","Barasat_SectorV_5023",1,{"$f":"VLOOKUP(C555,'[1]Raw Kolkata Stop level Route'!G:I,3,0)","v":"College More Opp. Hyundai Showroom"}]
[null,null,"New-town_Joka_1002",1,{"$f":"VLOOKUP(C556,'[1]Raw Kolkata Stop level Route'!G:I,3,0)","v":"Joke Diamond Club"}]
[null,null,"NewTown_Sonarpur_1001",1,{"$f":"VLOOKUP(C557,'[1]Raw Kolkata Stop level Route'!G:I,3,0)","v":"Sonarpur Sadharan Sammilani"}]
[null,null,"NewTown_Sonarpur_5058",1,{"$f":"VLOOKUP(C558,'[1]Raw Kolkata Stop level Route'!G:I,3,0)","v":"Opposite to Bansdroni busstop"}]
[null,null,"Parnasree-NewTown-1001",1,{"$f":"VLOOKUP(C559,'[1]Raw Kolkata Stop level Route'!G:I,3,0)","v":"National insurance-kadam pukur more bus stop"}]
[null,null,"SectorV_Sonarpur_5052",1,{"$f":"VLOOKUP(C560,'[1]Raw Kolkata Stop level Route'!G:I,3,0)","v":"Roy Store"}]
[null,null,"Sonarpur_SectorV_5051",2,{"$f":"VLOOKUP(C561,'[1]Raw Kolkata Stop level Route'!G:I,3,0)","v":"College More First Gate"}]
[null,"Sector V Total",null,8]
["Sonarpur Total",null,null,74]
["Thakurpukur","New Town","Hatisala_Barasat_5022",1,{"$f":"VLOOKUP(C564,'[1]Raw Kolkata Stop level Route'!G:I,3,0)","v":"Renault Car dealer, Automotive dealer"}]
[null,null,"New-town_Joka_1002",2,{"$f":"VLOOKUP(C565,'[1]Raw Kolkata Stop level Route'!G:I,3,0)","v":"Joke Diamond Club"}]
[null,null,"NewTown_Santragachi_1005",1,{"$f":"VLOOKUP(C566,'[1]Raw Kolkata Stop level Route'!G:I,3,0)","v":"The Gate Way - Santragachi"}]
[null,null,"NewTown_Thakurpukur_1001",9,{"$f":"VLOOKUP(C567,'[1]Raw Kolkata Stop level Route'!G:I,3,0)","v":"Genexx Valley"}]
[null,null,"NewTown_Tollygunge(PrinceAnwar)_1004",2,{"$f":"VLOOKUP(C568,'[1]Raw Kolkata Stop level Route'!G:I,3,0)","v":"Mahanayak Uttam kumar"}]
[null,null,"Thakurpukur_NewTown_1001",10,{"$f":"VLOOKUP(C569,'[1]Raw Kolkata Stop level Route'!G:I,3,0)","v":"National insurance-kadam pukur more bus stop"}]
[null,null,{"$error":"#N/A"},1]
[null,"New Town Total",null,26]
["Thakurpukur Total",null,null,26]
["Tikiapara","New Town","NewTown_Tikiapara_1001",2,{"$f":"VLOOKUP(C573,'[1]Raw Kolkata Stop level Route'!G:I,3,0)","v":"Adi Guru Shankaracharya Temple - Tikiapara"}]
[null,null,"NewTown_Tollygunge(PrinceAnwar)_1004",1,{"$f":"VLOOKUP(C574,'[1]Raw Kolkata Stop level Route'!G:I,3,0)","v":"Mahanayak Uttam kumar"}]
[null,null,"Tikiapara_NewTown_1001",2,{"$f":"VLOOKUP(C575,'[1]Raw Kolkata Stop level Route'!G:I,3,0)","v":"National insurance-kadam pukur more bus stop"}]
[null,null,"Tollygunge(PrinceAnwar)_NewTown_1004",1,{"$f":"VLOOKUP(C576,'[1]Raw Kolkata Stop level Route'!G:I,3,0)","v":"Ecospace Opp. Entry Gate"}]
[null,"New Town Total",null,6]
["Tikiapara Total",null,null,6]
["Tollygunge Prince Anwar","Kadampukur","Newtown_Bijaygarh_1003",2,{"$f":"VLOOKUP(C579,'[1]Raw Kolkata Stop level Route'!G:I,3,0)","v":"BijayGarh-Pallisree"}]
[null,null,"NewTown_Jadavpur_1005",1,{"$f":"VLOOKUP(C580,'[1]Raw Kolkata Stop level Route'!G:I,3,0)","v":"Jadavpur Bus Stop"}]
[null,null,"NewTown_Ranikuthi_1001",1,{"$f":"VLOOKUP(C581,'[1]Raw Kolkata Stop level Route'!G:I,3,0)","v":"Madhumita Restaurant-Ranikuthi"}]
[null,null,"NewTown_Sonarpur_5058",1,{"$f":"VLOOKUP(C582,'[1]Raw Kolkata Stop level Route'!G:I,3,0)","v":"Opposite to Bansdroni busstop"}]
[null,null,"NewTown_Tollygunge (METRO) _1002",2,{"$f":"VLOOKUP(C583,'[1]Raw Kolkata Stop level Route'!G:I,3,0)","v":"Mahanayak Uttam kumar"}]
[null,null,"NewTown_Tollygunge(PrinceAnwar)_1004",3,{"$f":"VLOOKUP(C584,'[1]Raw Kolkata Stop level Route'!G:I,3,0)","v":"Mahanayak Uttam kumar"}]
[null,null,"SectorV_Sonarpur_5052",1,{"$f":"VLOOKUP(C585,'[1]Raw Kolkata Stop level Route'!G:I,3,0)","v":"Roy Store"}]
[null,null,"Sonarpur_NewTown_1001",1,{"$f":"VLOOKUP(C586,'[1]Raw Kolkata Stop level Route'!G:I,3,0)","v":"Ecospace Opp. Entry Gate"}]
[null,null,"Tollygunge (METRO)_NewTown_1002",10,{"$f":"VLOOKUP(C587,'[1]Raw Kolkata Stop level Route'!G:I,3,0)","v":"Kadampukur More Bus Stop"}]
[null,null,"Tollygunge(PrinceAnwar)_NewTown_1004",1,{"$f":"VLOOKUP(C588,'[1]Raw Kolkata Stop level Route'!G:I,3,0)","v":"Ecospace Opp. Entry Gate"}]
[null,"Kadampukur Total",null,23]
[null,"New Town","CentralKolkata_NewTown_5035",1,{"$f":"VLOOKUP(C590,'[1]Raw Kolkata Stop level Route'!G:I,3,0)","v":"Deep Garage Car repair and service Repair shop"}]
[null,null,"NewTown_Ranikuthi_1001",3,{"$f":"VLOOKUP(C591,'[1]Raw Kolkata Stop level Route'!G:I,3,0)","v":"Madhumita Restaurant-Ranikuthi"}]
[null,null,"NewTown_Santragachi_1005",1,{"$f":"VLOOKUP(C592,'[1]Raw Kolkata Stop level Route'!G:I,3,0)","v":"The Gate Way - Santragachi"}]
[null,null,"NewTown_Tollygunge (METRO) _1002",2,{"$f":"VLOOKUP(C593,'[1]Raw Kolkata Stop level Route'!G:I,3,0)","v":"Mahanayak Uttam kumar"}]
[null,null,"NewTown_Tollygunge(PrinceAnwar)_1004",2,{"$f":"VLOOKUP(C594,'[1]Raw Kolkata Stop level Route'!G:I,3,0)","v":"Mahanayak Uttam kumar"}]
[null,null,"Sonarpur_NewTown_5057",1,{"$f":"VLOOKUP(C595,'[1]Raw Kolkata Stop level Route'!G:I,3,0)","v":"Mani Casa Government Office"}]
[null,null,"Tollygunge(PrinceAnwar)_NewTown_1004",5,{"$f":"VLOOKUP(C596,'[1]Raw Kolkata Stop level Route'!G:I,3,0)","v":"Ecospace Opp. Entry Gate"}]
[null,"New Town Total",null,15]
["Tollygunge Prince Anwar Total",null,null,38]
["Grand Total",null,null,426]